{"text_format":"1","workbook":"xlsx","n_sheets":41,"sheets":["Параметрлар _ Параметры","Список компаний","param","Список таблиц","Жадваллар рўйхати","1806_1_uz","1806_2_uz","1806_3_uz","1806_4_uz","1806_5_uz","1806_6_uz","1882_1_uz","1882_2_uz","1882_3_uz","1882_4_uz","1882_5_uz","1945_1_uz","1945_2_uz","1945_3_uz","1945_4_uz","1945_5_uz","1945_6_uz","1945_7_uz","1806_1_ru","1806_2_ru","1806_3_ru","1806_4_ru","1806_5_ru","1806_6_ru","1882_1_ru","1882_2_ru","1882_3_ru","1882_4_ru","1882_5_ru","1945_1_ru","1945_2_ru","1945_3_ru","1945_4_ru","1945_5_ru","1945_6_ru","1945_7_ru"],"not_rendered":{"charts":0,"images":0,"macros":1,"external_links":1,"defined_names":0,"comments":0,"pivot_tables":0},"unopened":[],"bounds":{"document_bytes":16777216,"sheet_cells":100000,"rows_first":2000,"rows_last":500,"rows_between":2000,"halvings":0,"cell_chars":16384,"cell_head_chars":4096},"cells_cut":0,"cells_raw":0,"read":"whole","date_system":"1900"}

{"sheet":"Параметрлар _ Параметры","index":0,"n_rows":26,"n_cols":6,"rows_kept":26,"cut":false,"hidden":false,"merged":[[25,1,42,10],[0,0,1,11],[3,0,3,11],[5,2,6,4],[5,5,6,7],[8,2,9,4],[8,5,9,7],[11,2,12,4],[11,5,12,7],[14,2,15,4],[14,5,15,7],[17,2,22,4]]}
["Ўзбекистон Республикаси Истиқболли лойиҳалар миллий агентлиги"]
[]
[]
["Молиявий ҳисоботларнинг электрон шакли      |      Электронный вид финансовой отчетности"]
[]
[null,null,"Компанияни танланг:\nВыберите компанию:",null,null,"---------------------"]
[]
[]
[null,null,"Ҳисобот йилини танланг: Выберите год отчетности:",null,null,2023]
[]
[]
[null,null,"Ҳисобот даврини танланг: Выберите период отчетности:",null,null,"30.09.2023"]
[]
[]
[null,null,"Файлнинг сақланиш номи: \nИмя файла при сохранении:",null,null,{"$f":"IFERROR(VLOOKUP(F6,'Список компаний'!A:B,2,FALSE)&\"_\"&VLOOKUP(F12,'Список компаний'!E:F,2,FALSE)&\"_\"&F9,\"ERROR\")","v":"_09_2023"}]
[]
[]
[null,null,"Тилни танланг:\nВыберите язык:"]
[]
[]
[]
[]
[]
[]
[]
[null,"ЭСЛАТМА  \nЭлектрон ҳисобот тўлдирилаётгганда унинг шаклига ўзгартиришлар киритилмаслиги лозим. \nУшбу файл макрослар билан сақланиши шарт. \nҚўшимча қаторларни қўшиш фақатгина керакли жадвалларда \"Қўшимча қатор қўшиш\" тугмаси ёрдамида амалга оширишга рухсат берилади. \nУшбу ҳисоботнинг электрон шакли қуйидаги ҳавола орқали жўнатилиши лозим: \nhttps://napp.uz/hisobot/ \nБарча саволлар бўйича ушбу телефон рақами орқали мурожаат қилишингиз мумкин: 71 231-79-18\n\nПРИМЕЧАНИЕ\nПри заполнении форм электронной отчетности не допускается внесение в них изменений. \nТип файла должен оставаться с поддержкой макросов. \nДопускается только вставлять дополнительные строки в соответствующих таблицах при помощи кнопки \"Добавить строку\". \nОтправка электронной формы отчетности осушествляется по следующей ссылке: https://napp.uz/hisobot/\t\t\t\t\t\t\t\t\t\t\nПо всем вопросам обращайтесь по следущему телефонному номеру: 71 231-79-18\n"]

{"sheet":"Список компаний","index":1,"n_rows":44,"n_cols":6,"rows_kept":44,"cut":false,"hidden":true,"merged":[]}
["---------------------"]
["\"O‘ZBEKINVEST\" EISK AJ","0001",null,2021,{"$f":"\"31.03.\"&'Параметрлар _ Параметры'!$F$9","v":"31.03.2023"},{"$f":"\"03\"","v":"03"}]
["\"O‘ZAGROSUG‘URTA\" AJ","0002",null,2022,{"$f":"\"30.06.\"&'Параметрлар _ Параметры'!$F$9","v":"30.06.2023"},{"$f":"\"06\"","v":"06"}]
["\"KAFOLAT SUG‘URTA KOMPANIYASI\" AJ","0003",null,2023,{"$f":"\"30.09.\"&'Параметрлар _ Параметры'!$F$9","v":"30.09.2023"},{"$f":"\"09\"","v":"09"}]
["\"ALFA INVEST SUG‘URTA KOMPANIYASI\" AJ","0004",null,2024,{"$f":"\"31.12.\"&'Параметрлар _ Параметры'!$F$9","v":"31.12.2023"},{"$f":"\"12\"","v":"12"}]
["\"ALSKOM\" AJ","0005"]
["\"ASIA INSURANCE SUG‘URTA KOMPANIYASI\" AJ","0006"]
["\"ASKO-VOSTOK\" AJ QK","0007"]
["\"APEX INSURANCE\" AJ","0008"]
["\"DD GENERAL INSURANCE\" AJ","0009"]
["\"EUROASIA INSURANCE\" AJ QK","0010"]
["\"GARANT INSURANCE GROUP\"  AJ","0011"]
["\"GLOBAL INSURANCE GROUP\" AJ","0012"]
["\"GROSS SUG‘URTA KOMPANIYASI\" AJ","0013"]
["\"HAMKOR SUG’URTA\" AJ","0014"]
["\"IMKON SUG’URTA\" AJ","0015"]
["\"INGO-UZBEKISTON\" AJ","0016"]
["\"ISHONCH SUG‘URTA KOMPANIYASI\" AJ","0017"]
["\"KAFIL SUG’URTA\" AJ","0018"]
["\"KAPITAL SUG‘URTA\" AJ","0019"]
["\"MY-INSURANCE\" AJ","0020"]
["\"OMAD SUG‘URTA\" AJ","0021"]
["\"SQB INSURANCE SUG‘URTA KOMPANIYASI\" AJ","0022"]
["\"PERFECT INSURANCE\" AJ","0023"]
["\"INSON\" AJ","0024"]
["\"TEMIRYO‘L SUG‘URTA\" AJ","0025"]
["\"UNIPOLIS\" AJ","0026"]
["\"UNIVERSAL SUG‘URTA\" AJ","0027"]
["\"XALQ SUG‘URTA\" AJ","0028"]
["\"AGROS HAYOT\" AJ","0029"]
["\"ALFA LIFE INSURANCE\" AJ","0030"]
["\"FAROVON SUG‘URTA\" AJ","0031"]
["\"APEX LIFE INSURANCE\" AJ","0032"]
["\"EUROASIA LIFE INSURANCE\" AJ","0033"]
["\"KAFOLAT HAYOT INSURANCE\" AJ","0034"]
["\"NEW LIFE SUG‘URTA KOMPANIYASI\" AJ","0035"]
["\"O’ZBEKINVEST HAYOT SUG‘URTA KOMPANIYASI\" AJ","0036"]
["\"ARIA SUG‘URTA TASHKILOTI\" AJ","0037"]
["\"SEMURG SUG‘URTA\" AJ QK","0038"]
["\"SHARQ-SUG‘URTA\" AJ","0039"]
["\"TRUST-INSURANCE\" AJ","0040"]
["\"MOSAIC INSURANCE GROUP\" AJ XK","0041"]
["\"IMPEX-INSURANCE\" AJ","0042"]
["\"NEO INSURANCE CORP\" AJ","0043"]

{"sheet":"param","index":2,"n_rows":29,"n_cols":2,"rows_kept":29,"cut":false,"hidden":true,"merged":[]}
["1806_4_uz"]
[{"$f":"MAX('[1]1806_4_uz'!B:B)","v":30},"max"]
[{"$f":"\"C\"&(A2+8)&\":F\"&(A2+8)","v":"C38:F38"},"delete_line"]
[{"$f":"\"B\"&(A2+8)","v":"B38"},"copy_line"]
[]
["1806_5_uz"]
[{"$f":"MAX('[1]1806_5_uz'!B:B)","v":30},"max"]
[{"$f":"\"C\"&(A7+8)&\":H\"&(A7+8)","v":"C38:H38"},"delete_line"]
[{"$f":"\"B\"&(A7+8)","v":"B38"},"copy_line"]
[]
["1806_6_uz"]
[{"$f":"MAX('[1]1806_6_uz'!B:B)","v":30},"max"]
[{"$f":"\"C\"&(A12+15)&\":H\"&(A12+15)","v":"C45:H45"},"delete_line"]
[{"$f":"\"B\"&(A12+15)","v":"B45"},"copy_line"]
[]
["1806_4_ru"]
[{"$f":"MAX('[1]1806_4_ru'!B:B)","v":30},"max"]
[{"$f":"\"C\"&(A17+8)&\":F\"&(A17+8)","v":"C38:F38"},"delete_line"]
[{"$f":"\"B\"&(A17+8)","v":"B38"},"copy_line"]
[]
["1806_5_ru"]
[{"$f":"MAX('[1]1806_5_ru'!B:B)","v":30},"max"]
[{"$f":"\"C\"&(A22+8)&\":H\"&(A22+8)","v":"C38:H38"},"delete_line"]
[{"$f":"\"B\"&(A22+8)","v":"B38"},"copy_line"]
[]
["1806_6_ru"]
[{"$f":"MAX('[1]1806_6_ru'!B:B)","v":46},"max"]
[{"$f":"\"C\"&(A27+15)&\":H\"&(A27+15)","v":"C61:H61"},"delete_line"]
[{"$f":"\"B\"&(A27+15)","v":"B61"},"copy_line"]

{"sheet":"Список таблиц","index":3,"n_rows":19,"n_cols":5,"rows_kept":19,"cut":false,"hidden":true,"merged":[]}
["Код приложения","Регистрационный номер документа","Наименование документа","Номер приложения","Наименование приложения"]
[{"$f":"B2&\"_\"&D2","v":"1806_1"},1806,"Положение о платежеспособности страховщиков и перестраховщиков",1,"Расчет норматива достаточности маржи платежеспособности страховщика, осуществляющего деятельность в отрасли общего страхования (исключительно по перестрахованию)"]
["1806_2",1806,"Положение о платежеспособности страховщиков и перестраховщиков",2,"Расчет норматива достаточности маржи платежеспособности страховщика, осуществляющего деятельность в отрасли страхования жизни"]
["1806_3",1806,"Положение о платежеспособности страховщиков и перестраховщиков",3,"Сведения о соблюдении требований по предельно допустимому размеру обязательств по отдельным рискам и совокупному размеру обязательств страховщика (перестраховщика) и размещению активов страховщика (перестраховщика)"]
["1806_4",1806,"Положение о платежеспособности страховщиков и перестраховщиков",4,"Расчет по долевому участию в уставном капитале любого одного юридического лица"]
["1806_5",1806,"Положение о платежеспособности страховщиков и перестраховщиков",5,"Расчет по сумме активов, размещенных у одного связанного лица или у всех связанных лиц страховщика/перестраховщика"]
["1806_6",1806,"Положение о платежеспособности страховщиков и перестраховщиков",6,"Сведения о соблюдении требований по перестраховочным операциям страховщика/перестраховщика"]
["1882_1",1882,"Положение о страховых резервах страховщиков",1,"Расчет доходов, расходов и финансового результата для целей расчета стабилизационного резерва по обязательному страхованию гражданской ответственности владельцев транспортных средств"]
["1882_2",1882,"Положение о страховых резервах страховщиков",2,"Расчет доходов, расходов и финансового результата для целей расчета стабилизационного резерва по обязательному страхованию гражданской ответственности работодателя"]
["1882_3",1882,"Положение о страховых резервах страховщиков",3,"Расчет доходов, расходов и финансового результата для целей расчета стабилизационного резерва по обязательному страхованию гражданской ответственности перевозчика"]
["1882_4",1882,"Положение о страховых резервах страховщиков",4,"Общая величина страховых резервов "]
["1882_5",1882,"Положение о страховых резервах страховщиков",5,"Сведения о сотаве активов"]
["1945_1",1945,"Формы финансовой отчетности страховщиков и правила по их заполнению",1,"Бухгалтерский баланс — форма № 1 — страхование"]
["1945_2",1945,"Формы финансовой отчетности страховщиков и правила по их заполнению",2,"Справка о наличии ценностей, учитываемых на забалансовых счетах"]
["1945_3",1945,"Формы финансовой отчетности страховщиков и правила по их заполнению",3,"Отчет о финансовых результатах — форма № 2 — страхование"]
["1945_4",1945,"Формы финансовой отчетности страховщиков и правила по их заполнению",4,"Справка о платежах в бюджет"]
["1945_5",1945,"Формы финансовой отчетности страховщиков и правила по их заполнению",5,"Отчет о денежных потоках — форма № 4 — страхование"]
["1945_6",1945,"Формы финансовой отчетности страховщиков и правила по их заполнению",6,"Справка о движении денежных средств в иностранной валюте"]
["1945_7",1945,"Формы финансовой отчетности страховщиков и правила по их заполнению",7,"Отчет о собственном капитале — форма № 5 — страхование"]

{"sheet":"Жадваллар рўйхати","index":4,"n_rows":19,"n_cols":5,"rows_kept":19,"cut":false,"hidden":true,"merged":[]}
["Илова коди","Ҳужжат қайд рақами","Ҳужжат номи","Илова рақами","Илова номи"]
[{"$f":"B2&\"_\"&D2","v":"1806_1"},1806,"Суғурталовчилар ва қайта суғурталовчиларнинг тўлов қобилияти тўғрисидаги низом",1,"Умумий суғурта соҳасида ёки фақат қайта суғурта қилиш фаолиятини амалга оширадиган суғурталовчининг тўлов қобилияти маржасининг етарлилиги нормативи ҳисоб-китоби"]
[{"$f":"B3&\"_\"&D3","v":"1806_2"},1806,"Суғурталовчилар ва қайта суғурталовчиларнинг тўлов қобилияти тўғрисидаги низом",2,"Ҳаётни суғурта қилиш соҳасида суғурта фаолиятини амалга оширадиган суғурталовчининг тўлов қобилияти маржасининг етарлилиги нормативи ҳисоб-китоби"]
["1806_3",1806,"Суғурталовчилар ва қайта суғурталовчиларнинг тўлов қобилияти тўғрисидаги низом",3,"Суғурталовчи/қайта суғурталовчининг алоҳида таваккалчиликлар бўйича мажбуриятларнинг йўл қўйиладиган энг кўп миқдори ва мажбуриятлар жамининг йўл қўйиладиган энг кўп миқдори нормативларига риоя қилганлиги ҳамда суғурталовчи (қайта суғурталовчи) активларини жойлаштиришга оид талабларга риоя қилинганлиги тўғрисида маълумотлар"]
["1806_4",1806,"Суғурталовчилар ва қайта суғурталовчиларнинг тўлов қобилияти тўғрисидаги низом",4,"Суғурталовчи/қайта суғурталовчининг ҳар қандай битта юридик шахснинг устав капиталида иштирок этиш улуши ҳисоб-китоби"]
["1806_5",1806,"Суғурталовчилар ва қайта суғурталовчиларнинг тўлов қобилияти тўғрисидаги низом",5,"Суғурталовчи/қайта суғурталовчининг битта боғлиқ шахс ёки барча боғлиқ шахсларда жойлаштирилган активлари суммаси ҳисоб-китоби"]
["1806_6",1806,"Суғурталовчилар ва қайта суғурталовчиларнинг тўлов қобилияти тўғрисидаги низом",6,"Суғурталовчи/қайта суғурталовчининг қайта суғурта қилиш операцияларига оид талабларга риоя қилганлиги тўғрисида маълумотлар"]
["1882_1",1882,"Суғурталовчиларнинг суғурта захиралари тўғрисидаги низом",1,"Транспорт воситалари эгаларининг фуқаролик жавобгарлигини мажбурий суғурта қилиш бўйича барқарорлаштириш захирасини ҳисоблаш мақсадида даромадлар, харажатлар ва молиявий натижаларнинг ҳисоб-китоби"]
["1882_2",1882,"Суғурталовчиларнинг суғурта захиралари тўғрисидаги низом",2,"Иш берувчининг фуқаролик жавобгарлигини мажбурий суғурта қилиш бўйича барқарорлаштириш захирасини ҳисоблаш мақсадида даромадлар, харажатлар ва молиявий натижаларнинг ҳисоб-китоби"]
["1882_3",1882,"Суғурталовчиларнинг суғурта захиралари тўғрисидаги низом",3,"Ташувчининг фуқаролик жавобгарлигини мажбурий суғурта қилиш бўйича барқарорлаштириш захирасини ҳисоблаш мақсадида даромадлар, харажатлар ва молиявий натижаларнинг ҳисоб-китоби"]
["1882_4",1882,"Суғурталовчиларнинг суғурта захиралари тўғрисидаги низом",4,"Суғурта захираларининг умумий миқдори"]
["1882_5",1882,"Суғурталовчиларнинг суғурта захиралари тўғрисидаги низом",5,"Активлар таркиби тўғрисида маълумот"]
["1945_1",1945,"Суғурталовчиларнинг молиявий ҳисобот шаклларини ва уларни тўлдириш бўйича қоидаларни тасдиқлаш тўғрисидаги Молия вазирлиги буйруғи",1,"Бухгалтерия баланси — 1-сонли шакл — суғурта"]
["1945_2",1945,"Суғурталовчиларнинг молиявий ҳисобот шаклларини ва уларни тўлдириш бўйича қоидаларни тасдиқлаш тўғрисидаги Молия вазирлиги буйруғи",2,"Балансдан ташқари счётларда ҳисобга олинадиган қийматликларнинг мавжудлиги тўғрисида маълумотнома"]
["1945_3",1945,"Суғурталовчиларнинг молиявий ҳисобот шаклларини ва уларни тўлдириш бўйича қоидаларни тасдиқлаш тўғрисидаги Молия вазирлиги буйруғи",3,"Молиявий натижалар тўғрисидаги ҳисобот — 2-сонли шакл — суғурта"]
["1945_4",1945,"Суғурталовчиларнинг молиявий ҳисобот шаклларини ва уларни тўлдириш бўйича қоидаларни тасдиқлаш тўғрисидаги Молия вазирлиги буйруғи",4,"Бюджетга тўловлар тўғрисида маълумотнома"]
["1945_5",1945,"Суғурталовчиларнинг молиявий ҳисобот шаклларини ва уларни тўлдириш бўйича қоидаларни тасдиқлаш тўғрисидаги Молия вазирлиги буйруғи",5,"Пул оқимлари тўғрисидаги ҳисобот — 4-сонли шакл — суғурта"]
["1945_6",1945,"Суғурталовчиларнинг молиявий ҳисобот шаклларини ва уларни тўлдириш бўйича қоидаларни тасдиқлаш тўғрисидаги Молия вазирлиги буйруғи",6,"Чет эл валютасидаги пул маблағларининг ҳаракати тўғрисида маълумотнома"]
["1945_7",1945,"Суғурталовчиларнинг молиявий ҳисобот шаклларини ва уларни тўлдириш бўйича қоидаларни тасдиқлаш тўғрисидаги Молия вазирлиги буйруғи",7,"Хусусий капитал тўғрисидаги ҳисобот — 5-сонли шакл — суғурта"]

{"sheet":"1806_1_uz","index":5,"n_rows":35,"n_cols":4,"rows_kept":35,"cut":false,"hidden":true,"merged":[]}
[null,"Қайд рақами",{"$f":"VLOOKUP($C$5,'Жадваллар рўйхати'!$A:$E,2,FALSE)","v":1806},"Жадваллар рўйхати"]
[null,"Ҳужжат номи",{"$f":"VLOOKUP($C$5,'Жадваллар рўйхати'!$A:$E,3,FALSE)","v":"Суғурталовчилар ва қайта суғурталовчиларнинг тўлов қобилияти тўғрисидаги низом"}]
[null,"Илова рақами",{"$f":"VLOOKUP($C$5,'Жадваллар рўйхати'!$A:$E,4,FALSE)","v":1}]
[null,"Илова номи",{"$f":"VLOOKUP(C5,'Жадваллар рўйхати'!$A:$E,2,FALSE)","v":1806}]
[null,"Илова коди","1806_1"]
[]
[null,"Т/р ","Нормативнинг номи","Миқдор (минг сўм)"]
[null,"1.","Суғурта фаолияти тўғрисидаги қонун ҳужжатларига мувофиқ суғурталовчи учун белгиланган устав капиталининг энг кам миқдори"]
[null,"2.","Қайта суғурталовчиларнинг улушларини чегириб қолинган ўтган ўттиз олти ой мобайнида ҳисобланган суғурта товонлари суммаси "]
[null,"3.","Ўтган ўттиз олти ой мобайнида ҳисобланган суғурта товонлари суммаси"]
[null,"4.","Умумий суғурта соҳаси учун тузатувчи коэффициент (2-сатр миқдорининг 3-сатр миқдорига нисбати, 0,5 дан кам бўлмаслиги шарт) "]
[null,"5.","Ўтган ўн икки ой мобайнида барча суғурта (қайта суғурта қилиш) шартномалари бўйича ҳисобланган суғурта мукофотлари суммаси"]
[null,"6.","Ўтган ўн икки ой мобайнида 11 ва 13 классларга оид суғурта (қайта суғурта қилиш) шартномалари бўйича ҳисобланган суғурта мукофотлари суммасининг 50 фоизи"]
[null,"7.","Ўтган ўн икки ой мобайнида тузилган суғурта (қайта суғурта қилиш) шартномаларининг бекор қилиниши (шартлари ўзгариши) муносабати билан суғурта қилдирувчиларга (қайта суғурта қилдирувчиларга) қайтарилган суғурта мукофотлари суммаси"]
[null,"8.","5 ва 6-сатрлар миқдорларининг йиғиндисидан 7-сатр миқдорини чегириб қолиб аниқланган натижанинг 20 фоизи "]
[null,"9.","«Мукофотлар усули» бўйича ҳисобланган миқдор (4-сатр миқдорини 8-сатр миқдорига кўпайтириш йўли билан ҳисобланган миқдор) "]
[null,"10.","Ўтган ўттиз олти ой мобайнида 11 ва 13 классларга оид суғурта (қайта суғурта қилиш) шартномалари бўйича ҳисобланган суғурта товонлари суммасининг 50 фоизи"]
[null,"11.","Ҳисобот санасига хабар қилинган, лекин бартараф этилмаган зарарлар захирасининг миқдори"]
[null,"12.","Ҳисобот санасига 11 ва 13 классларга оид суғурта (қайта суғурта қилиш) шартномалари бўйича хабар қилинган, лекин бартараф этилмаган зарарлар захираси миқдорининг 50 фоизи"]
[null,"13.","3, 10, 11 ва 12-сатрлар миқдорлари йиғиндисининг 10 фоизи"]
[null,"14.","«Тўловлар усули» бўйича ҳисобланган миқдор (4-сатр миқдорини 13-сатр миқдорига кўпайтириш йўли билан ҳисобланган миқдор)"]
[null,"15.","Тўлов қобилияти маржасининг норматив миқдори (1, 9 ва 14-сатрларнинг миқдорларидан энг каттаси) "]
[null,"16.","Ўз маблағлари манбаларининг суммаси (бухгалтерия баланси пассив қисмининг биринчи бўлими бўйича жами суммаси)"]
[null,"17.","Номоддий активлар суммаси, суғурталовчи активларининг 10 фоизидан ошмаган миқдордаги суғурталовчининг асосий фаолияти учун харид қилинган дастурий таъминот бундан мустасно"]
[null,"18.","Таъсисчиларнинг устав капиталига улушлар бўйича қарзи суммаси"]
[null,"19.","Мақсадли тушумлар ва келгуси давр харажатлари ва тўловлари учун захиралар суммаси"]
[null,"20.","Таъсисчилар (акциядорлар) ўртасида тақсимлаш учун мўлжалланган тақсимланмаган фойда қисмининг суммаси"]
[null,"21.","Таъсисчиларга, акциядорларга ва ходимларга берилган қарзлар, шунингдек ушбу қарзлар бўйича жамғарилган фоизлар суммаси"]
[null,"22.","Дебитор — боғлиқ шахсларнинг қарзлари суммаси;"]
[null,"23.","Суғурта (қайта суғурта қилиш) шартномасида белгиланган тўлов санасидан уч ойдан кўп муддат мобайнида суғурта қилдирувчилар (қайта суғурта қилдирувчилар) томонидан тўланмаган суғурта (қайта суғурта) мукофотлари суммаси"]
[null,"24.","Солиқ ва бошқа мажбурий тўловлар бўйича дебиторлик қарзлар суммаси"]
[null,"25.","Берилган кафолатлар суммаси"]
[null,"26.","17-дан 25-гача бўлган сатрлар миқдорларининг йиғиндиси "]
[null,"27.","Тўлов қобилияти маржасининг ҳақиқий миқдори (16-сатр миқдоридан 26-сатр миқдорининг чегириш орқали аниқланади) "]
[null,"28.","Тўлов қобилияти маржасининг етарлилиги нормативи (27-сатр миқдорининг 15-сатр миқдорига нисбати)"]

{"sheet":"1806_2_uz","index":6,"n_rows":39,"n_cols":4,"rows_kept":39,"cut":false,"hidden":true,"merged":[[38,1,39,3]]}
[null,"Қайд рақами",{"$f":"VLOOKUP($C$5,'Жадваллар рўйхати'!$A:$E,2,FALSE)","v":1806},"Жадваллар рўйхати"]
[null,"Ҳужжат номи",{"$f":"VLOOKUP($C$5,'Жадваллар рўйхати'!$A:$E,3,FALSE)","v":"Суғурталовчилар ва қайта суғурталовчиларнинг тўлов қобилияти тўғрисидаги низом"}]
[null,"Илова рақами",{"$f":"VLOOKUP($C$5,'Жадваллар рўйхати'!$A:$E,4,FALSE)","v":2}]
[null,"Илова номи",{"$f":"VLOOKUP($C$5,'Жадваллар рўйхати'!$A:$E,5,FALSE)","v":"Ҳаётни суғурта қилиш соҳасида суғурта фаолиятини амалга оширадиган суғурталовчининг тўлов қобилияти маржасининг етарлилиги нормативи ҳисоб-китоби"}]
[null,"Илова коди","1806_2"]
[]
[null,"Т/р ","Нормативнинг номи","Миқдор (минг сўм)"]
[null,"1.","Суғурта фаолияти тўғрисидаги қонун ҳужжатларига мувофиқ суғурталовчи учун белгиланган устав капиталининг энг кам миқдори"]
[null,"2.","Қайта суғурталовчиларнинг мукофотлар захирасидаги улуши чегириб қолинган мукофотлар захираси миқдори"]
[null,"3.","Мукофотлар захираси миқдори"]
[null,"4.","Ҳаётни суғурта қилиш соҳаси учун тузатувчи коэффициент (2-сатр миқдорининг 3-сатр миқдорига нисбати, 0,85 дан кам бўлмаслиги шарт) "]
[null,"5.","3-сатр миқдорини 4-сатр миқдорига кўпайтириш йўли билан ҳисобланган миқдорнинг 5 фоизи"]
[null,"6.","Қайта суғурталовчиларнинг улушларини чегириб қолинган ўтган ўттиз олти ой мобайнида умумий суғурта соҳасининг 1 ва 2 классларига оид суғурта (қайта суғурта қилиш) шартномалари бўйича ҳисобланган суғурта товонлари суммаси"]
[null,"7.","Ўтган ўттиз олти ой мобайнида умумий суғурта соҳасининг 1 ва 2 классларига оид суғурта (қайта суғурта қилиш) шартномалари бўйича ҳисобланган суғурта товонлари суммаси"]
[null,"8.","Умумий суғурта соҳасининг 1 ва 2 класслари учун тузатувчи коэффициент (6-сатр миқдорининг 7-сатр миқдорига нисбати, 0,5 дан кам бўлмаслиги шарт) "]
[null,"9.","Ўтган ўн икки ой мобайнида умумий суғурта соҳасининг 1 ва 2 классларига оид суғурта (қайта суғурта қилиш) шартномалари бўйича ҳисобланган суғурта мукофотлари суммаси"]
[null,"10.","Ўтган ўн икки ой мобайнида умумий суғурта соҳасининг 1 ва 2 классларига оид тузилган суғурта (қайта суғурта қилиш) шартномаларининг бекор қилиниши (шартлари ўзгариши) муносабати билан суғурта қилдирувчиларга (қайта суғурта қилдирувчиларга) қайтарилган суғурта мукофотлари суммаси"]
[null,"11.","9-сатр миқдоридан 10-сатр миқдорини чегириб қолиб аниқланган натижанинг 20 фоизи"]
[null,"12.","Ҳисобот санасига умумий суғурта соҳасининг 1 ва 2 классларига оид хабар қилинган, лекин бартараф этилмаган зарарлар захирасининг миқдори"]
[null,"13.","7 ва 12-сатрлар миқдорлари йиғиндисининг 10 фоизи"]
[null,"14.","11 ва 13-сатрларнинг миқдорларидан энг каттаси"]
[null,"15.","8-сатр миқдорини 14-сатр миқдорига кўпайтириш йўли билан ҳисобланган миқдор"]
[null,"16.","5 ва 15-сатрлар миқдорлари йиғиндиси*"]
[null,"17.","Тўлов қобилияти маржасининг норматив миқдори (1 ва 16-сатрларнинг миқдорларидан энг каттаси) "]
[null,"18.","Ўз маблағлари манбаларининг суммаси (бухгалтерия баланси пассив қисмининг биринчи бўлими бўйича жами суммаси)"]
[null,"19.","Номоддий активлар суммаси, суғурталовчи активларининг 10 фоизидан ошмаган миқдордаги суғурталовчининг асосий фаолияти учун харид қилинган дастурий таъминот бундан мустасно"]
[null,"20.","Таъсисчиларнинг устав капиталига улушлар бўйича қарзи суммаси"]
[null,"21.","Мақсадли тушумлар ва келгуси давр харажатлари ва тўловлари учун захиралар суммаси"]
[null,"22.","Таъсисчилар (акциядорлар) ўртасида тақсимлаш учун мўлжалланган тақсимланмаган фойда қисмининг суммаси"]
[null,"23.","Таъсисчиларга, акциядорларга ва ходимларга берилган қарзлар, шунингдек ушбу қарзлар бўйича жамғарилган фоизлар суммаси"]
[null,"24.","Дебитор-боғлиқ шахсларнинг қарзлари суммаси;"]
[null,"25.","Суғурта (қайта суғурта қилиш) шартномасида белгиланган тўлов санасидан уч ойдан кўп муддат мобайнида суғурта қилдирувчилар (қайта суғурта қилдирувчилар) томонидан тўланмаган суғурта (қайта суғурта) мукофотлари суммаси"]
[null,"26.","Солиқ ва бошқа мажбурий тўловлар бўйича дебиторлик қарзлар суммаси"]
[null,"27.","Берилган кафолатлар суммаси"]
[null,"28.","19-дан 27-гача бўлган сатрлар миқдорларининг йиғиндиси "]
[null,"29.","Тўлов қобилияти маржасининг ҳақиқий миқдори (18-сатр миқдоридан 28-сатр миқдорининг чегириш орқали аниқланади) "]
[null,"30.","Тўлов қобилияти маржасининг етарлилиги нормативи (29-сатр миқдорининг 17-сатр миқдорига нисбати)"]
[]
[null,"* 5-дан 15-гача бўлган сатрлар, фақат ҳаётни суғурта қилиш соҳасида суғурта фаолиятини амалга оширадиган суғурталовчи умумий суғурта соҳасининг 1 ва 2 класслари бўйича ҳам суғурта фаолиятини амалга оширадиган бўлса, қўлланилади. "]

{"sheet":"1806_3_uz","index":7,"n_rows":20,"n_cols":5,"rows_kept":20,"cut":false,"hidden":true,"merged":[[6,3,6,4]]}
[null,"Қайд рақами",{"$f":"VLOOKUP($C$5,'Жадваллар рўйхати'!$A:$E,2,FALSE)","v":1806},"Жадваллар рўйхати"]
[null,"Ҳужжат номи",{"$f":"VLOOKUP($C$5,'Жадваллар рўйхати'!$A:$E,3,FALSE)","v":"Суғурталовчилар ва қайта суғурталовчиларнинг тўлов қобилияти тўғрисидаги низом"}]
[null,"Илова рақами",{"$f":"VLOOKUP($C$5,'Жадваллар рўйхати'!$A:$E,4,FALSE)","v":3}]
[null,"Илова номи",{"$f":"VLOOKUP($C$5,'Жадваллар рўйхати'!$A:$E,5,FALSE)","v":"Суғурталовчи/қайта суғурталовчининг алоҳида таваккалчиликлар бўйича мажбуриятларнинг йўл қўйиладиган энг кўп миқдори ва мажбуриятлар жамининг йўл қўйиладиган энг кўп миқдори нормативларига риоя қилганлиги ҳамда суғурталовчи (қайта суғурталовчи) активларини жойлаштиришга оид талабларга риоя қилинганлиги тўғрисида маълумотлар"}]
[null,"Илова коди","1806_3"]
[]
[null,"Т/р ","Нормативнинг номи","Миқдор (минг сўм) "]
[null,null,null,"норматив","ҳақиқатда"]
[null,"1.","Суғурталовчининг (қайта суғурталовчининг) алоҳида таваккалчиликлар бўйича мажбуриятларининг энг кўп миқдори, экспорт контрактларини сиёсий ва тижорат таваккалчиликларидан суғурта қилиш бундан мустасно"]
[null,"1.1.","Суғурталовчининг (қайта суғурталовчининг) экспорт контрактларини сиёсий ва тижорат таваккалчиликларидан суғурта қилиш юзасидан алоҳида таваккалчиликлар бўйича мажбуриятларининг энг кўп миқдори"]
[null,"2.","Суғурталовчининг (қайта суғурталовчининг) бешта энг йирик алоҳида таваккалчиликлар бўйича мажбуриятларининг энг кўп миқдори"]
[null,"2.1.","Суғурталовчининг (қайта суғурталовчининг) экспорт контрактларини сиёсий ва тижорат таваккалчиликларидан суғурта қилиш юзасидан бешта энг йирик алоҳида таваккалчиликлар бўйича мажбуриятларининг энг кўп миқдори"]
[null,"3.","Суғурталовчи (қайта суғурталовчи) бошқа юридик шахсларнинг устав капиталларига жойлаштирган активларининг умумий суммаси"]
[null,"4.","Суғурталовчи (қайта суғурталовчи) активларини битта ер участкаси ёки кўчмас мулкнинг бошқа объектига ёхуд битта объект сифатида кўрилиши мумкин бўлган ер участкалари ва кўчмас мулк объектлари мажмуига жойлаштиришининг энг кўп миқдори"]
[null,"5.","Битта тижорат банкига жойлаштирилган энг кўп омонат (депозит) "]
[null,"6.","Кредит ташкилотларига (тижорат банкларидан ташқари) жойлаштирилган омонатларнинг (депозитларнинг) умумий суммаси "]
[null,"7.","Суғурталовчи (қайта суғурталовчи) активларини битта юридик шахснинг устав капиталига жойлаштириш ёки битта юридик шахсда бошқа иштирок этиш ҳуқуқи"]
[null,"8.","Суғурталовчи (қайта суғурталовчи) таъсисчилари, акциядорлари ва ходимларига берилган, шунингдек, у билан ҳаёт суғуртаси шартномасини тузган суғурта қилдирувчиларга берилган ушбу шартномалар билан кафолатланган қарзларнинг умумий суммаси"]
[null,"9.","Жалб этилган қарзнинг (молиявий ёрдамнинг) энг кўп миқдори"]
[null,"10.","Суғурталовчининг (қайта суғурталовчининг) касса ва/ёки ҳисоб (валюта) ва бошқа банк рақамларидаги пул маблағлари, шунингдек, уларга тенглашитирилган маблағлар"]

{"sheet":"1806_4_uz","index":8,"n_rows":37,"n_cols":6,"rows_kept":37,"cut":false,"hidden":true,"merged":[]}
[null,"Қайд рақами",{"$f":"VLOOKUP($C$5,'Жадваллар рўйхати'!$A:$E,2,FALSE)","v":1806},"Жадваллар рўйхати"]
[null,"Ҳужжат номи",{"$f":"VLOOKUP($C$5,'Жадваллар рўйхати'!$A:$E,3,FALSE)","v":"Суғурталовчилар ва қайта суғурталовчиларнинг тўлов қобилияти тўғрисидаги низом"}]
[null,"Илова рақами",{"$f":"VLOOKUP($C$5,'Жадваллар рўйхати'!$A:$E,4,FALSE)","v":4}]
[null,"Илова номи",{"$f":"VLOOKUP($C$5,'Жадваллар рўйхати'!$A:$E,5,FALSE)","v":"Суғурталовчи/қайта суғурталовчининг ҳар қандай битта юридик шахснинг устав капиталида иштирок этиш улуши ҳисоб-китоби"}]
[null,"Илова коди","1806_4"]
[]
[null,"№","Юридик шахснинг номи ","Юридик шахснинг устав капитали миқдори (минг сўм) ","Устав капиталда суғурталовчининг (қайта суғурталовчининг) иштирок этиш миқдори (минг сўм) ","Устав капиталда суғурталовчининг (қайта суғурталовчининг) иштирок этиш улуши (%)"]
[null,1]
[null,{"$f":"B8+1","v":2}]
[null,{"$f":"B9+1","v":3}]
[null,4]
[null,5]
[null,6]
[null,7]
[null,8]
[null,9]
[null,10]
[null,11]
[null,12]
[null,13]
[null,14]
[null,15]
[null,16]
[null,17]
[null,18]
[null,19]
[null,20]
[null,21]
[null,22]
[null,23]
[null,24]
[null,25]
[null,26]
[null,27]
[null,28]
[null,29]
[null,30]

{"sheet":"1806_5_uz","index":9,"n_rows":37,"n_cols":8,"rows_kept":37,"cut":false,"hidden":true,"merged":[]}
[null,"Қайд рақами",{"$f":"VLOOKUP($C$5,'Жадваллар рўйхати'!$A:$E,2,FALSE)","v":1806},"Жадваллар рўйхати"]
[null,"Ҳужжат номи",{"$f":"VLOOKUP($C$5,'Жадваллар рўйхати'!$A:$E,3,FALSE)","v":"Суғурталовчилар ва қайта суғурталовчиларнинг тўлов қобилияти тўғрисидаги низом"}]
[null,"Илова рақами",{"$f":"VLOOKUP($C$5,'Жадваллар рўйхати'!$A:$E,4,FALSE)","v":5}]
[null,"Илова номи",{"$f":"VLOOKUP($C$5,'Жадваллар рўйхати'!$A:$E,5,FALSE)","v":"Суғурталовчи/қайта суғурталовчининг битта боғлиқ шахс ёки барча боғлиқ шахсларда жойлаштирилган активлари суммаси ҳисоб-китоби"}]
[null,"Илова коди","1806_5"]
[]
[null,"№","Боғлиқ шахс (номи ёки Ф.И.Ш.) ","Жойлаштириш тури","Қўйилманинг даромадлилиги (йиллик фоизларда)","Жойлаштирилган активлар суммаси","Суғурталовчининг (қайта суғурталовчининг)боғлиқ шахслар билан фаолиятининг кўрсаткичи (%)","Норматив (%)"]
[null,1]
[null,{"$f":"B8+1","v":2}]
[null,{"$f":"B9+1","v":3}]
[null,4]
[null,5]
[null,6]
[null,7]
[null,8]
[null,9]
[null,10]
[null,11]
[null,12]
[null,13]
[null,14]
[null,15]
[null,16]
[null,17]
[null,18]
[null,19]
[null,20]
[null,21]
[null,22]
[null,23]
[null,24]
[null,25]
[null,26]
[null,27]
[null,28]
[null,29]
[null,30]

{"sheet":"1806_6_uz","index":10,"n_rows":44,"n_cols":8,"rows_kept":44,"cut":false,"hidden":true,"merged":[[12,1,12,7]]}
[null,"Қайд рақами",{"$f":"VLOOKUP($C$5,'Жадваллар рўйхати'!$A:$E,2,FALSE)","v":1806},"Жадваллар рўйхати"]
[null,"Ҳужжат номи",{"$f":"VLOOKUP($C$5,'Жадваллар рўйхати'!$A:$E,3,FALSE)","v":"Суғурталовчилар ва қайта суғурталовчиларнинг тўлов қобилияти тўғрисидаги низом"}]
[null,"Илова рақами",{"$f":"VLOOKUP($C$5,'Жадваллар рўйхати'!$A:$E,4,FALSE)","v":6}]
[null,"Илова номи",{"$f":"VLOOKUP($C$5,'Жадваллар рўйхати'!$A:$E,5,FALSE)","v":"Суғурталовчи/қайта суғурталовчининг қайта суғурта қилиш операцияларига оид талабларга риоя қилганлиги тўғрисида маълумотлар"}]
[null,"Илова коди","1806_6"]
[]
[null,"1-жадвал","Кўрсаткичнинг номи","Қатор рақами","Миқдор, минг сўм, АҚШ доллари, бошқа ","Изоҳ"]
[null,null,"Ўзида қолдирилган улушнинг энг кам миқдори (мажбуриятлар чет эл суғурта ташкилотларида қайта суғурталанганда), экспорт контрактларини сиёсий ва тижорат таваккалчиликларидан суғурта қилиш ва чет элга чиқувчи шахсларни суғурта қилиш шартномалари бундан мустасно",1]
[null,null,"Суғурталовчининг (қайта суғурталовчининг) ўтган чоракдаги тўлов қобилияти маржасининг ҳақиқий миқдори",2]
[null,null,"1-қаторнинг 2-қаторга нисбати (%)",3,null,"Йўл қўйиладиган энг кам миқдор 5% "]
[null,null,"Ўзбекистон Республикаси ташқарисига қайта суғуртага берилган ҳар бир алоҳида суғурта (қайта суғурта қилиш) шартномаси бўйича мажбуриятларнинг энг кўп ҳажми",4,null,"Йўл қўйиладиган энг кўп миқдор 95% "]
[]
[null,"* Суғурта брокери орқали қайта суғурта қилинганда унинг номи ва улуши кўрсатилади, қайта суғурталовчилар тўғрисидаги маълумот ушбу жадвалга, мазкур шаклга мувофиқ илова қилинади."]
[null,"2-жадвал","Суғурталовчининг/ қайта суғурталовчининг номи (кимга қайта суғурта қилишга берилган)*","Молиявий барқарорлик рейтинги (рейтинг агентлигининг номини кўрсатган ҳолда)","Суғурталовчи (қайта суғурталовчи) мамлакати","Қайта суғуртага берилган суғурта мажбуриятлари ҳажми (минг сўм, АҚШ доллари, бошқа)","Қайта суғуртага берилган шартномалар бўйича суғурта мукофотлари ҳажми (минг сўм, АҚШ доллари, бошқа)","Қайта суғуртага берилган суғурта мажбуриятлари умумий ҳажмидаги қайта суғурталовчининг улуши (%)"]
[null,1]
[null,{"$f":"B15+1","v":2}]
[null,{"$f":"B16+1","v":3}]
[null,4]
[null,5]
[null,6]
[null,7]
[null,8]
[null,9]
[null,10]
[null,11]
[null,12]
[null,13]
[null,14]
[null,15]
[null,16]
[null,17]
[null,18]
[null,19]
[null,20]
[null,21]
[null,22]
[null,23]
[null,24]
[null,25]
[null,26]
[null,27]
[null,28]
[null,29]
[null,30]

{"sheet":"1882_1_uz","index":11,"n_rows":34,"n_cols":4,"rows_kept":34,"cut":false,"hidden":true,"merged":[[33,1,35,3]]}
[null,"Қайд рақами",{"$f":"VLOOKUP($C$5,'Жадваллар рўйхати'!$A:$E,2,FALSE)","v":1882},"Жадваллар рўйхати"]
[null,"Ҳужжат номи",{"$f":"VLOOKUP($C$5,'Жадваллар рўйхати'!$A:$E,3,FALSE)","v":"Суғурталовчиларнинг суғурта захиралари тўғрисидаги низом"}]
[null,"Илова рақами",{"$f":"VLOOKUP($C$5,'Жадваллар рўйхати'!$A:$E,4,FALSE)","v":1}]
[null,"Илова номи",{"$f":"VLOOKUP($C$5,'Жадваллар рўйхати'!$A:$E,5,FALSE)","v":"Транспорт воситалари эгаларининг фуқаролик жавобгарлигини мажбурий суғурта қилиш бўйича барқарорлаштириш захирасини ҳисоблаш мақсадида даромадлар, харажатлар ва молиявий натижаларнинг ҳисоб-китоби"}]
[null,"Илова коди","1882_1"]
[null,null,null,"1-жадвал"]
[null,"Сатр т/р","Кўрсаткич номи","Миқдори (минг сўм)"]
[null,"1.","Ҳисобот даврида ҳисобланган суғурта брутто-мукофоти"]
[null,"2.","Ҳисобот даврида суғурталовчининг тўловларни кафолатлаш Жамғармасига мажбурий бадаллари"]
[null,"3.","Ҳисобот даври бошига ИМЗ "]
[null,"4.","Ҳисобот даври охирига (ҳисобот санасига) ИМЗ"]
[null,"5.","Ҳисобот даври бошига ХЗЗ"]
[null,"6.","Ҳисобот даври охирига (ҳисобот санасига) ХЗЗ"]
[null,"7.","Ҳисобот даври бошига СХЗЗ "]
[null,"8.","Ҳисобот даври охирига (ҳисобот санасига) СХЗЗ"]
[null,"9.","Ҳисобот даврида амалга оширилган суғурта тўловлари"]
[null,"10.","Шартномаларнинг муддатидан олдин тугатилиши (шартларининг ўзгартирилиши) муносабати билан ҳисобот даврида суғурта қилдирувчиларга қайтарилган суғурта мукофотлари (бадаллари) "]
[null,"11.","Ҳисобот даврида транспорт воситалари эгаларининг фуқаролик жавобгарлигини мажбурий суғурта қилишни амалга ошириш учун амалга оширилган харажатлар (шу жумладан, суғурта ҳодисалари содир бўлишининг олдини олиш ва огоҳлантириш бўйича огоҳлантириш чора-тадбирлари захирасига ажратмалар) (11 сатр = 1 сатр х 25%)"]
[null,"12.","Ҳисобот даврида ИМЗ, ХЗЗ ва СХЗЗ ўзгариши (12 сатр = 4 сатр – 3 сатр + 6 сатр – 5 сатр + 8 сатр – 7 сатр) "]
[null,"13.","Жами — даромадлар (агар 12 сатр > = 0, бу ҳолда 13 сатр = 1 сатр; агар 12 сатр < 0, бу ҳолда 13 сатр = 1 сатр – 12 сатр.) "]
[null,"14.","Жами — харажатлар (агар 12 сатр > = 0, бу ҳолда 14 сатр = 2 сатр + 9 сатр + 10 сатр + 11 сатр + 12 сатр; агар 12 сатр < 0, бу ҳолда 14 сатр = 2 сатр + 9 сатр + 10 сатр + 11 сатр.) "]
[null,"15.","Молиявий натижа (даромадларнинг харажатлардан ёки харажатларнинг даромадлардан юқорилиги) (15 сатр = 13 сатр – 14 сатр)"]
[]
[null,null,"Транспорт воситалари эгаларининг фуқаролик жавобгарлигини мажбурий суғурта қилиш бўйича барқарорлаштириш захирасининг ҳисоб-китоби","2-жадвал"]
[null,"Сатр т/р","Кўрсаткич номи","Миқдори (минг сўм)"]
[null,"1.","Даромадлар (1-жадвалнинг 13 сатри маълумотларига кўра) "]
[null,"2.","Молиявий натижа (даромадларнинг харажатлардан ёки харажатларнинг даромадлардан ошганлиги) (1-жадвалнинг 15 сатри маълумотларига кўра) "]
[null,"3.","Ҳисобот даври бошига транспорт воситалари эгаларининг фуқаролик жавобгарлигини мажбурий суғурта қилиш бўйича барқарорлаштириш захираси (ФЖМС БЗ) "]
[null,"4.","ФЖМС БЗ нинг кўпайиши/камайиши (агар 2 сатр > = 0,05 х 1 сатр, бу ҳолда 4 сатр = 2 сатр – 0,05 х 1 сатр; агар 0 < = 2 сатр < 0,05 х 1 сатр, бу ҳолда 4 сатр = 0; агар 2 сатр < 0, бу ҳолда 4 сатр = 2 сатр.) "]
[null,"5.","Оралиқ якун (3 сатр + 4 сатр)"]
[null,"51.","Транспорт воситалари эгаларининг фуқаролик жавобгарлигини мажбурий суғурта қилиш шартномалари бўйича ҳисобот санасига қадар ўттиз олти ой даврида амалга оширилган суғурта тўловлари суммаси"]
[null,"6.","Ҳисобот санасига транспорт воситалари эгаларининг фуқаролик жавобгарлигини мажбурий суғурта қилиш бўйича барқарорлаштириш захираси (агар 5-сатр < 0, бу ҳолда 6-сатр = 0; агар 51-сатр > 5-сатр >= 0, бу ҳолда 6-сатр = 5-сатр; агар 5-сатр > 51-сатр, бу ҳолда 6-сатр = 51-сатр.) "]
[]
[null,"* Фақатгина суғурталовчи томонидан транспорт воситалари эгаларининг фуқаролик жавобгарлигини мажбурий суғурта қилиш бўйича фаолият олиб борилган тақдирда тўлдирилади. Мазкур жадвалдаги даромадлар, харажатлар ва молиявий натижани аниқлашда қўлланилувчи барча миқдорлар транспорт воситалари эгаларининг фуқаролик жавобгарлигини мажбурий суғурта қилишга тааллуқлидир."]

{"sheet":"1882_2_uz","index":12,"n_rows":32,"n_cols":4,"rows_kept":32,"cut":false,"hidden":true,"merged":[[31,1,33,3]]}
[null,"Қайд рақами",{"$f":"VLOOKUP($C$5,#REF!,2,FALSE)","v":1882},"Жадваллар рўйхати"]
[null,"Ҳужжат номи",{"$f":"VLOOKUP($C$5,#REF!,3,FALSE)","v":"Суғурталовчиларнинг суғурта захиралари тўғрисидаги низом"}]
[null,"Илова рақами",{"$f":"VLOOKUP($C$5,#REF!,4,FALSE)","v":2}]
[null,"Илова номи",{"$f":"VLOOKUP($C$5,#REF!,5,FALSE)","v":"Иш берувчининг фуқаролик жавобгарлигини мажбурий суғурта қилиш бўйича барқарорлаштириш захирасини ҳисоблаш мақсадида даромадлар, харажатлар ва молиявий натижаларнинг ҳисоб-китоби"}]
[null,"Илова коди","1882_2"]
[null,null,null,"1-жадвал"]
[null,"Сатр №","Кўрсаткич номи","Миқдори (минг сўм)"]
[null,"1.","Ҳисобот даврида ҳисобланган суғурта брутто-мукофоти"]
[null,"2.","Ҳисобот даври бошига ИМЗ"]
[null,"3.","Ҳисобот даври охирига (ҳисобот санасига) ИМЗ"]
[null,"4.","Ҳисобот даври бошига ХЗЗ"]
[null,"5.","Ҳисобот даври охирига (ҳисобот санасига) ХЗЗ"]
[null,"6.","Ҳисобот даври бошига СХЗЗ"]
[null,"7.","Ҳисобот даври охирига (ҳисобот санасига) СХЗЗ"]
[null,"8.","Ҳисобот даврида амалга оширилган суғурта тўловлари"]
[null,"9.","Шартномаларнинг муддатидан олдин тугатилиши (шартларининг ўзгартирилиши) муносабати билан ҳисобот даврида суғурта қилдирувчиларга қайтарилган суғурта мукофотлари (бадаллари)"]
[null,"10.","Ҳисобот даврида иш берувчининг фуқаролик жавобгарлигини мажбурий суғурта қилишни амалга ошириш учун амалга оширилган харажатлар (шу жумладан, суғурта ҳодисалари содир бўлишининг олдини олиш ва огоҳлантириш бўйича огоҳлантириш чора-тадбирлари захирасига ажратмалар) (10 сатр = 1сатр х 30%)"]
[null,"11.","Ҳисобот даврида ИМЗ, ХЗЗ ва СХЗЗ ўзгариши (11 сатр = 3 сатр – 2 сатр + 5 сатр – 4 сатр + 7 сатр – 6 сатр) "]
[null,"12.","Жами — даромадлар (агар 11 сатр > = 0, бу ҳолда 12 сатр = 1 сатр; агар 11 сатр < 0, бу ҳолда 12 сатр = 1 сатр – 11 сатр)"]
[null,"13.","Жами — харажатлар (агар 11 сатр > = 0, бу ҳолда 13 сатр = 8 сатр + 9 сатр + 10 сатр + 11 сатр; агар 11 сатр < 0, бу ҳолда 13 сатр = 8 сатр + 9 сатр + 10 сатр)"]
[null,"14.","Молиявий натижа (даромадларнинг харажатлардан ёки харажатларнинг даромадлардан юқорилиги) (14 сатр = 12 сатр – 13 сатр)"]
[]
[null,null,"Иш берувчининг фуқаролик жавобгарлигини мажбурий суғурта қилиш бўйича барқарорлаштириш захирасининг ҳисоб-китоби","2-жадвал"]
[null,"Сатр №","Кўрсаткич номи","Миқдори (минг сўм)"]
[null,"1.","Даромадлар (1-жадвалнинг 12 сатри маълумотларига кўра)"]
[null,"2.","Молиявий натижа (даромадларнинг харажатлардан ёки харажатларнинг даромадлардан ошганлиги) (1-жадвалнинг 14 сатри маълумотларига кўра)"]
[null,"3.","Ҳисобот даври бошига иш берувчининг фуқаролик жавобгарлигини мажбурий суғурта қилиш бўйича барқарорлаштириш захираси (ИФЖМС БЗ)"]
[null,"4.","ИФЖМС БЗ нинг кўпайиши/камайиши (агар 2 сатр > = 0,05 х 1 сатр, бу ҳолда 4 сатр = 2 сатр – 0,05 х 1 сатр; агар 0 < = 2 сатр < 0,05 х 1 сатр, бу ҳолда 4 сатр = 0; агар 2 сатр < 0, бу ҳолда 4 сатр = 2 сатр)"]
[null,"5.","Оралиқ якун (3 сатр + 4 сатр)"]
[null,"6.","Ҳисобот санасига иш берувчининг фуқаролик жавобгарлигини мажбурий суғурта қилиш бўйича барқарорлаштириш захираси (агар 5 сатр < 0, бу ҳолда 6 сатр = 0; агар 5 сатр > = 0, бу ҳолда 6 сатр = 5 сатр)"]
[]
[null,"* Фақатгина суғурталовчи томонидан иш берувчининг фуқаролик жавобгарлигини мажбурий суғурта қилиш бўйича фаолият олиб борилган тақдирда тўлдирилади. Мазкур жадвалдаги даромадлар, харажатлар ва молиявий натижани аниқлашда қўлланилувчи барча миқдорлар иш берувчининг фуқаролик жавобгарлигини мажбурий суғурта қилишга тааллуқлидир."]

{"sheet":"1882_3_uz","index":13,"n_rows":32,"n_cols":4,"rows_kept":32,"cut":false,"hidden":true,"merged":[[31,1,33,3]]}
[null,"Қайд рақами",{"$f":"VLOOKUP($C$5,#REF!,2,FALSE)","v":1882},"Жадваллар рўйхати"]
[null,"Ҳужжат номи",{"$f":"VLOOKUP($C$5,#REF!,3,FALSE)","v":"Суғурталовчиларнинг суғурта захиралари тўғрисидаги низом"}]
[null,"Илова рақами",{"$f":"VLOOKUP($C$5,#REF!,4,FALSE)","v":3}]
[null,"Илова номи",{"$f":"VLOOKUP($C$5,#REF!,5,FALSE)","v":"Ташувчининг фуқаролик жавобгарлигини мажбурий суғурта қилиш бўйича барқарорлаштириш захирасини ҳисоблаш мақсадида даромадлар, харажатлар ва молиявий натижаларнинг ҳисоб-китоби"}]
[null,"Илова коди","1882_3"]
[null,null,null,"1-жадвал"]
[null,"Сатр Т/р","Кўрсаткич номи","Миқдори (минг сўм)"]
[null,"1.","Ҳисобот даврида ҳисобланган суғурта брутто-мукофоти"]
[null,"2.","Ҳисобот даври бошига ИМЗ"]
[null,"3.","Ҳисобот даври охирига (ҳисобот санасига) ИМЗ"]
[null,"4.","Ҳисобот даври бошига ХЗЗ"]
[null,"5.","Ҳисобот даври охирига (ҳисобот санасига) ХЗЗ"]
[null,"6.","Ҳисобот даври бошига СХЗЗ"]
[null,"7.","Ҳисобот даври охирига (ҳисобот санасига) СХЗЗ"]
[null,"8.","Ҳисобот даврида амалга оширилган суғурта тўловлари"]
[null,"9.","Шартномаларнинг муддатидан олдин тугатилиши (шартларининг ўзгартирилиши) муносабати билан ҳисобот даврида суғурта қилдирувчиларга қайтарилган суғурта мукофотлари (бадаллари)"]
[null,"10.","Ҳисобот даврида ташувчининг фуқаролик жавобгарлигини мажбурий суғурта қилишни амалга ошириш учун амалга оширилган харажатлар (шу жумладан, суғурта ҳодисалари содир бўлишининг олдини олиш ва огоҳлантириш бўйича огоҳлантириш чора-тадбирлари захирасига ажратмалар) (10 сатр = 1 сатр х 30%)"]
[null,"11.","Ҳисобот даврида ИМЗ, ХЗЗ ва СХЗЗ ўзгариши (11 сатр = 3 сатр — 2 сатр + 5 сатр — 4 сатр + 7 сатр — 6 сатр)"]
[null,"12.","Жами — даромадлар (агар 11 сатр > = 0, бу ҳолда 12 сатр = 1 сатр; агар 11 сатр < 0, бу ҳолда 12 сатр = 1 сатр — 11 сатр)"]
[null,"13.","Жами — харажатлар (агар 11 сатр >= 0, бу ҳолда 13 сатр = 8 сатр + 9 сатр + 10 сатр + 11 сатр; агар 11 сатр < 0, бу ҳолда 13 сатр = 8 сатр + 9 сатр + 10 сатр)"]
[null,"14.","Молиявий натижа (даромадларнинг харажатлардан ёки харажатларнинг даромадлардан юқорилиги) (14 сатр = 12 сатр — 13 сатр)"]
[]
[null,null,"Ташувчининг фуқаролик жавобгарлигини мажбурий суғурта қилиш бўйича барқарорлаштириш захирасининг ҳисоб-китоби","2-жадвал"]
[null,"Сатр Т/р","Кўрсаткич номи","Миқдори (минг сўм)"]
[null,"1.","Даромадлар (1-жадвалнинг 12 сатри маълумотларига кўра)"]
[null,"2.","Молиявий натижа (даромадларнинг харажатларданёки харажатларнинг даромадлардан ошганлиги) (1-жадвалнинг 14 сатри маълумотларига кўра)"]
[null,"3.","Ҳисобот даври бошига ташувчининг фуқаролик жавобгарлигини мажбурий суғурта қилиш бўйича барқарорлаштириш захираси (ТФЖМС БЗ)"]
[null,"4.","ТФЖМС БЗ нинг кўпайиши/камайиши (агар 2 сатр > = 0,05 х 1 сатр, бу ҳолда 4 сатр = 2 сатр — 0,05 х 1 сатр; агар 0 < = 2 сатр < 0,05 х 1 сатр, бу ҳолда 4 сатр = 0; агар 2 сатр < 0, бу ҳолда 4 сатр = 2 сатр)"]
[null,"5.","Оралиқ якун (3 сатр + 4 сатр)"]
[null,"6.","Ҳисобот санасига ташувчининг фуқаролик жавобгарлигини мажбурий суғурта қилиш бўйича барқарорлаштириш захираси (агар 5 сатр < 0, бу ҳолда 6 сатр = 0; агар 5 сатр > = 0, бу ҳолда 6 сатр = 5 сатр)"]
[]
[null,"* Фақатгина суғурталовчи томонидан ташувчининг фуқаролик жавобгарлигини мажбурий суғурта қилиш бўйича фаолият олиб борилган тақдирда тўлдирилади. Мазкур жадвалдаги даромадлар, харажатлар ва молиявий натижани аниқлашда қўлланилувчи барча миқдорлар ташувчининг фуқаролик жавобгарлигини мажбурий суғурта қилишга тааллуқлидир."]

{"sheet":"1882_4_uz","index":14,"n_rows":47,"n_cols":8,"rows_kept":47,"cut":false,"hidden":true,"merged":[[10,1,10,2],[6,1,7,2],[6,3,7,3],[6,4,6,7],[8,1,8,2],[9,1,9,2],[22,1,22,2],[11,1,11,2],[12,1,12,2],[13,1,13,2],[14,1,14,2],[15,1,15,2],[16,1,16,2],[17,1,17,2],[18,1,18,2],[19,1,19,2],[20,1,20,2],[21,1,21,2],[34,1,34,2],[23,1,23,2],[24,1,24,2],[25,1,25,2],[26,1,26,2],[27,1,27,2],[28,1,28,2],[29,1,29,2],[30,1,30,2],[31,1,31,2],[32,1,32,2],[33,1,33,2],[46,1,46,2],[35,1,35,2],[36,1,36,2],[37,1,37,2],[38,1,38,2],[39,1,39,2],[40,1,40,2],[41,1,41,2],[42,1,42,2],[43,1,43,2],[44,1,44,2],[45,1,45,2]]}
[null,"Қайд рақами",{"$f":"VLOOKUP($C$5,#REF!,2,FALSE)","v":1882},"Жадваллар рўйхати"]
[null,"Ҳужжат номи",{"$f":"VLOOKUP($C$5,#REF!,3,FALSE)","v":"Суғурталовчиларнинг суғурта захиралари тўғрисидаги низом"}]
[null,"Илова рақами",{"$f":"VLOOKUP($C$5,#REF!,4,FALSE)","v":4}]
[null,"Илова номи",{"$f":"VLOOKUP($C$5,#REF!,5,FALSE)","v":"Суғурта захираларининг умумий миқдори"}]
[null,"Илова коди","1882_4"]
[]
[null,"Захиралар",null,"Жами (минг сўм)","Шулардан хорижий валютада"]
[null,null,null,null,"АҚШ доллари","евро","бошқа","жами (минг сўм экв.)"]
[null,"Ишлаб топилмаган мукофот захираси (жами)"]
[null,"1-ҳисоб гуруҳи, шу жумладан:"]
[null,"ФЖМС бўйича ИМЗ"]
[null,"ИФЖМС бўйича ИМЗ"]
[null,"ТФЖМС бўйича ИМЗ"]
[null,"2-ҳисоб гуруҳи"]
[null,"3-ҳисоб гуруҳи"]
[null,"4-ҳисоб гуруҳи"]
[null,"Қайта суғурталовчиларнинг ИМЗдаги улуши"]
[null,"Хабар қилинган, лекин бартараф этилмаган зарарлар захираси (жами), шу жумладан:"]
[null,"ФЖМС бўйича ХЗЗ"]
[null,"ИФЖМС бўйича ХЗЗ"]
[null,"ТФЖМС бўйича ХЗЗ"]
[null,"Қайта суғурталовчиларнинг ХЗЗдаги улуши"]
[null,"Содир бўлган, лекин хабар қилинмаган зарарлар захираси (жами), шу жумладан:"]
[null,"ФЖМС бўйича СХЗЗ"]
[null,"ИФЖМС бўйича СХЗЗ"]
[null,"ТФЖМС бўйича СХЗЗ"]
[null,"Қайта суғурталовчиларнинг СХЗЗдаги улуши"]
[null,"Транспорт воситалари эгаларининг фуқаролик жавобгарлигини мажбурий суғурта қилиш бўйича барқарорлаштириш захираси (ФЖМС БЗ)"]
[null,"Иш берувчининг фуқаролик жавобгарлигини мажбурий суғурта қилиш бўйича барқарорлаштириш захираси (ИФЖМС БЗ)"]
[null,"Ташувчининг фуқаролик жавобгарлигини мажбурий суғурта қилиш бўйича барқарорлаштириш захираси (ТФЖМС БЗ)"]
[null,"Мукофотлар захираси (жами)"]
[null,"жумладан, ҳаётни суғурта қилишнинг жамғарилиб борувчи турлари бўйича захира"]
[null,"Қайта суғурталовчиларнинг ҲЖЗдаги улуши"]
[null,"Ҳаётни суғурта қилишнинг бошқа турлари (жамғарилиб борувчи турларидан ташқари) бўйича захира"]
[null,"Қайта суғурталовчиларнинг ҲЗдаги улуши"]
[null,"Қайта суғурталовчиларнинг мукофотлар захирасидаги улуши"]
[null,"Техник захираларнинг умумий миқдори"]
[null,"Қайта суғурталовчиларнинг техник захираларда умумий улуши"]
[null,"Огоҳлантириш чора-тадбирлари захираси (жами), шу жумладан:"]
[null,"ФЖМС ОЧЗ"]
[null,"ИФЖМС ОЧЗ"]
[null,"ТФЖМС ОЧЗ"]
[null,"Суғуртанинг бошқа турлари бўйича ОЧЗ"]
[null,"Бошқа суғурта захиралари"]
[null,"..."]
[null,"Суғурта захираларининг умумий миқдори"]
[null,"Қайта суғурталовчиларнинг суғурта захираларидаги умумий улуши"]

{"sheet":"1882_5_uz","index":15,"n_rows":45,"n_cols":8,"rows_kept":45,"cut":false,"hidden":true,"merged":[[10,1,10,2],[6,1,7,2],[6,3,6,4],[6,5,6,7],[8,1,8,2],[9,1,9,2],[22,1,22,2],[11,1,11,2],[12,1,12,2],[13,1,13,2],[14,1,14,2],[15,1,15,2],[16,1,16,2],[17,1,17,2],[18,1,18,2],[19,1,19,2],[20,1,20,2],[21,1,21,2],[34,1,34,2],[23,1,23,2],[24,1,24,2],[25,1,25,2],[26,1,26,2],[27,1,27,2],[28,1,28,2],[29,1,29,2],[30,1,30,2],[31,1,31,2],[32,1,32,2],[33,1,33,2],[41,1,41,2],[42,1,42,2],[43,1,43,2],[44,1,44,2],[35,1,35,2],[36,1,36,2],[37,1,37,2],[38,1,38,2],[39,1,39,2],[40,1,40,2]]}
[null,"Қайд рақами",{"$f":"VLOOKUP($C$5,#REF!,2,FALSE)","v":1882},"Жадваллар рўйхати"]
[null,"Ҳужжат номи",{"$f":"VLOOKUP($C$5,#REF!,3,FALSE)","v":"Суғурталовчиларнинг суғурта захиралари тўғрисидаги низом"}]
[null,"Илова рақами",{"$f":"VLOOKUP($C$5,#REF!,4,FALSE)","v":5}]
[null,"Илова номи",{"$f":"VLOOKUP($C$5,#REF!,5,FALSE)","v":"Активлар таркиби тўғрисида маълумот"}]
[null,"Илова коди","1882_5"]
[]
[null,"Активлар",null,"Жами активлар",null,"Улардан ажратилган активлар"]
[null,null,null,"Ўзбекистон Республикаси ҳудудида","Ўзбекистон Республикаси ҳудудидан ташқарида","Ўзбекистон Республикаси ҳудудида","Ўзбекистон Республикаси ҳудудидан ташқарида","жами (минг сўм экв.)"]
[null,"Асосий воситалар"]
[null,"Улардан, кўчмас мулк "]
[null,"Номоддий активлар "]
[null,"Инвестициялар, жами "]
[null,"Тижорат банкларидаги депозитлар (банк омонатлари) "]
[null,"Кредит ташкилотларидаги депозитлар (тижорат банкларидан ташқари)"]
[null,"Ходимларга берилган қарзлар, (боғлиқ шахслар ҳисобланувчи ходимлардан ташқари) "]
[null,"Суғурталовчининг боғлиқ шахслари ҳисобланмайдиган таъсисчилари ва акциядорларига қарзлар"]
[null,"Боғлиқ шахсларга берилган қарзлар"]
[null,"Бошқа қарзлар "]
[null,"Шўъба корхоналарига қўйилмалар "]
[null,"Боғлиқ шахсларга қўйилмалар "]
[null,"Давлат қимматли қоғозлари "]
[null,"Акциялар "]
[null,"Облигациялар "]
[null,"Бошқа қимматли қоғозлар "]
[null,"Бошқа инвестициялар "]
[null,"Пул маблағлари, жами "]
[null,"Ҳисоб рақамидаги пул маблағлари "]
[null,"Кассадаги пул маблағлари "]
[null,"Хорижий валютадаги пул маблағлари "]
[null,"Бошқа пул маблағлари ва эквивалентлар"]
[null,"Бошқа айланма активлар, жами "]
[null,"Ишлаб чиқариш захиралари (материаллар)"]
[null,"Тугалланмаган ишлаб чиқариш (хизматлар)"]
[null,"Сотиб олинган хусусий акциялар "]
[null,"Дебиторлик қарзлар, жами"]
[null,"Суғурта қилдирувчилар билан ҳисоб-китоблар "]
[null,"Қайта суғурталовчилар билан ҳисоб-китоблар "]
[null,"Бўнак тўловлари "]
[null,"Таъсисчилар билан ҳисоб-китоблар "]
[null,"Бюджет билан ҳисоб-китоблар "]
[null,"Бошқалар "]
[null,"Бошқа активлар, жами "]
[null,"Бошқа активлар (кўрсатинг) "]
[null,"… "]
[null,"ЖАМИ АКТИВЛАР "]

{"sheet":"1945_1_uz","index":16,"n_rows":146,"n_cols":8,"rows_kept":146,"cut":false,"hidden":true,"merged":[[7,1,7,3],[8,1,8,3],[9,1,9,3],[10,1,10,3],[11,1,11,3],[12,1,12,3],[0,2,0,6],[1,2,1,6],[2,2,2,6],[3,2,3,6],[4,2,4,6],[6,1,6,3],[19,1,19,3],[20,1,20,3],[21,1,21,3],[22,1,22,3],[23,1,23,3],[24,1,24,3],[13,1,13,3],[14,1,14,3],[15,1,15,3],[16,1,16,3],[17,1,17,3],[18,1,18,3],[31,1,31,3],[32,1,32,3],[33,1,33,3],[34,1,34,3],[35,1,35,3],[36,1,36,3],[25,1,25,3],[26,1,26,3],[27,1,27,3],[28,1,28,3],[29,1,29,3],[30,1,30,3],[43,1,43,3],[44,1,44,3],[45,1,45,3],[46,1,46,3],[47,1,47,3],[48,1,48,3],[37,1,37,3],[38,1,38,3],[39,1,39,3],[40,1,40,3],[41,1,41,3],[42,1,42,3],[55,1,55,3],[56,1,56,3],[57,1,57,3],[58,1,58,3],[59,1,59,3],[60,1,60,3],[49,1,49,3],[50,1,50,3],[51,1,51,3],[52,1,52,3],[53,1,53,3],[54,1,54,3],[67,1,67,3],[68,1,68,3],[69,1,69,3],[70,1,70,3],[71,1,71,3],[72,1,72,3],[61,1,61,3],[62,1,62,3],[63,1,63,3],[64,1,64,3],[65,1,65,3],[66,1,66,3],[79,1,79,3],[80,1,80,3],[81,1,81,3],[82,1,82,3],[83,1,83,3],[84,1,84,3],[73,1,73,3],[74,1,74,3],[75,1,75,3],[76,1,76,3],[77,1,77,3],[78,1,78,3],[91,1,91,3],[92,1,92,3],[93,1,93,3],[94,1,94,3],[95,1,95,3],[96,1,96,3],[85,1,85,3],[86,1,86,3],[87,1,87,3],[88,1,88,3],[89,1,89,3],[90,1,90,3],[103,1,103,3],[104,1,104,3],[105,1,105,3],[106,1,106,3],[107,1,107,3],[108,1,108,3],[97,1,97,3],[98,1,98,3],[99,1,99,3],[100,1,100,3],[101,1,101,3],[102,1,102,3],[115,1,115,3],[116,1,116,3],[117,1,117,3],[118,1,118,3],[119,1,119,3],[120,1,120,3],[109,1,109,3],[110,1,110,3],[111,1,111,3],[112,1,112,3],[113,1,113,3],[114,1,114,3],[127,1,127,3],[128,1,128,3],[129,1,129,3],[130,1,130,3],[131,1,131,3],[132,1,132,3],[121,1,121,3],[122,1,122,3],[123,1,123,3],[124,1,124,3],[125,1,125,3],[126,1,126,3],[139,1,139,3],[140,1,140,3],[141,1,141,3],[142,1,142,3],[143,1,143,3],[145,1,147,6],[133,1,133,3],[134,1,134,3],[135,1,135,3],[136,1,136,3],[137,1,137,3],[138,1,138,3]]}
[null,"Қайд рақами",{"$f":"VLOOKUP($C$5,#REF!,2,FALSE)","v":1945},null,null,null,null,"Жадваллар рўйхати"]
[null,"Ҳужжат номи",{"$f":"VLOOKUP($C$5,#REF!,3,FALSE)","v":"Суғурталовчиларнинг молиявий ҳисобот шаклларини ва уларни тўлдириш бўйича қоидаларни тасдиқлаш тўғрисидаги Молия вазирлиги буйруғи"}]
[null,"Илова рақами",{"$f":"VLOOKUP($C$5,#REF!,4,FALSE)","v":1}]
[null,"Илова номи",{"$f":"VLOOKUP($C$5,#REF!,5,FALSE)","v":"Бухгалтерия баланси — 1-сонли шакл — суғурта"}]
[null,"Илова коди","1945_1"]
[]
[null,"Кўрсаткичлар номи",null,null,"Сатр коди","Ҳисобот даври бошига","Ҳисобот даври охирига "]
[null,"Актив"]
[null,"I. Узоқ муддатли активлар"]
[null,"Асосий воситалар:"]
[null,"Бошланғич (қайта тиклаш) қиймати (0100, 0300)",null,null,10]
[null,"Эскириш суммаси (0200)",null,null,11]
[null,"Қолдиқ (баланс) қиймати (сатр. 010 — 011)",null,null,12]
[null,"Номоддий активлар:"]
[null,"Бошланғич қиймати (0400)",null,null,20]
[null,"Амортизация суммаси (0500)",null,null,21]
[null,"Қолдиқ (баланс) қиймати (сатр. 020 — 021)",null,null,22]
[null,"Узоқ муддатли инвестициялар, жами (сатр.040 + 050 + 060 + 070 + 080), шу жумладан:",null,null,30]
[null,"Қимматли қоғозлар (0610)",null,null,40]
[null,"Шўъба хўжалик жамиятларига инвестициялар (0620)",null,null,50]
[null,"Қарам хўжалик жамиятларига инвестициялар (0630)",null,null,60]
[null,"Чет эл капитали мавжуд бўлган корхоналарга инвестициялар (0640)",null,null,70]
[null,"Бошқа узоқ муддатли инвестициялар (0690)",null,null,80]
[null,"Ўрнатиладиган асбоб-ускуналар (0700)",null,null,90]
[null,"Капитал қўйилмалар (0800)",null,null,100]
[null,"Узоқ муддатли дебиторлик қарзлари (0910, 0920, 0930, 0940)",null,null,110]
[null,"Узоқ муддатли кечиктирилган харажатлар (0950, 0960, 0990)",null,null,120]
[null,"I бўлим бўйича жами (сатр. 012 + 022 + 030 + 090 + 100 + 110 + 120)",null,null,130]
[null,"II. Жорий активлар"]
[null,"Товар-моддий захиралари, жами (сатр.150 + 160), шу жумладан:",null,null,140]
[null,"Материаллар (1000, 1500, 1600)",null,null,150]
[null,"Тугалланмаган хизматлар (2000, 2300, 2700)",null,null,160]
[null,"Келгуси давр харажатлари (3100)",null,null,170]
[null,"Кечиктирилган харажатлар (3200)",null,null,180]
[null,"Дебиторлар, жами (сатр. 200 + 310 + 320 + 330 + 340 + 350 + 360 + 370 + 38 0+ 390)",null,null,190]
[null,"шундан: муддати ўтган*",null,null,191]
[null,"Тўланадиган счётлар, жами (сатр. 210 + 220 - 400)",null,null,200]
[null,"Харидорлар ва буюртмачиларнинг қарзи (4010, 4020)",null,null,210]
[null,"Суғурта операциялари бўйича дебиторлар, жами (сатр. 230 + 240 + 250 + 260 + 270 + 280 + 290 + 300)",null,null,220]
[null,"Суғурта қилдирувчиларнинг қарзлари (4030)",null,null,230]
[null,"Суғурта агентлари ва брокерларининг қарзлари (4040)",null,null,240]
[null,"Қайта суғурта қилдирувчиларнинг қарзлари (4050)",null,null,250]
[null,"Қайта суғурталовчиларнинг комиссион мукофотлар, тантьема ва бошқа мукофотлар бўйича қарзлари (4051)",null,null,260]
[null,"Қайта суғурталовчиларнинг қарзлари (4060)",null,null,270]
[null,"Ҳаёт суғуртаси бўйича ссудалар (4070)",null,null,280]
[null,"Суғурталовчининг бошқа суғурталовчилардаги депо зарари (4080)",null,null,290]
[null,"Суғурталовчининг бошқа суғурталовчилардаги депо мукофотлари (4090)",null,null,300]
[null,"Алоҳида бўлинмаларнинг қарзи (4110)",null,null,310]
[null,"Шўъба ва қарам хўжалик жамиятларининг қарзи (4120)",null,null,320]
[null,"Ходимларга берилган бўнаклар (4200)",null,null,330]
[null,"Мол етказиб берувчилар ва пудратчиларга берилган бўнаклар (4300)",null,null,340]
[null,"Бюджетга бўнак тўловлари (4400)",null,null,350]
[null,"Мақсадли давлат жамғармалари ва суғурталар бўйича бўнак тўловлари (4500)",null,null,360]
[null,"Таъсисчиларнинг устав капиталига улушлар бўйича қарзи (4600)",null,null,370]
[null,"Ходимларнинг бошқа операциялар бўйича қарзи (4700)",null,null,380]
[null,"Бошқа дебиторлик қарзлари (4800)",null,null,390]
[null,"Ишончсиз қарзлар бўйича резерв (4900)",null,null,400]
[null,"Пул маблағлари, жами (сатр.420 + 430 + 440 + 450), шу жумладан:",null,null,410]
[null,"Кассадаги пул маблағлари (5000)",null,null,420]
[null,"Ҳисоб-китоб счётидаги пул маблағлари (5100)",null,null,430]
[null,"Чет эл валютасидаги пул маблағлари (5200)",null,null,440]
[null,"Бошқа пул маблағлари ва эквивалентлари (5500, 5600, 5700)",null,null,450]
[null,"Қисқа муддатли инвестициялар (5800)",null,null,460]
[null,"Бошқа жорий активлар (5900)",null,null,470]
[null,"II бўлим бўйича жами (сатр. 140 + 170 + 180 + 190 + 410 + 460 + 470).",null,null,480]
[null,"Баланс активи бўйича жами (сатр.130 + 480)",null,null,490]
[null,"Пассив"]
[null,"I. Ўз маблағлари манбалари "]
[null,"Устав капитали (8300)",null,null,500]
[null,"Қўшилган капитал (8400)",null,null,510]
[null,"Захира капитали (8500)",null,null,520]
[null,"Сотиб олинган хусусий акциялар (8600)",null,null,530]
[null,"Тақсимланмаган фойда (қопланмаган зарар) (8700)",null,null,540]
[null,"Мақсадли тушумлар (8800)",null,null,550]
[null,"Келгуси давр харажатлари ва тўловлари учун захиралар (8900)",null,null,560]
[null,"I бўлим бўйича жами (сатр. 500 + 510 + 520 - 530 + 540 + 550 + 560)",null,null,570]
[null,"II. Суғурта захиралари"]
[null,"Суғурта захиралари, жами (сатр. 590 + 600 + 610 + 620 + 630 + 640 + 650 + 660)",null,null,580]
[null,"Ишлаб топилмаган мукофотлар захираси (8010)",null,null,590]
[null,"Содир бўлган, лекин хабар қилинмаган зарарлар захираси (8020)",null,null,600]
[null,"Хабар қилинган, лекин бартараф этилмаган зарарлар захираси (8030)",null,null,610]
[null,"Огоҳлантириш чора -тадбирлари захираси (8040)",null,null,620]
[null,"Активларнинг номувофиқлиги захираси (8050)",null,null,630]
[null,"Фалокатлар захираси (8060)",null,null,640]
[null,"Зарарлиликнинг тебраниши захираси (8070)",null,null,650]
[null,"Ҳаёт суғуртаси бўйича захиралар (8090)",null,null,660]
[null,"Қайта суғурталовчиларнинг суғурта захираларидаги улуши, жами (сатр. 680 + 690 + 700 + 710)",null,null,670]
[null,"Ишлаб топилмаган мукофотлар захирасидаги қайта суғурталовчиларнинг улуши (8110)",null,null,680]
[null,"Хабар қилинган, лекин бартараф этилмаган зарарлар захирасидаги қайта суғурталовчиларнинг улуши (8120)",null,null,690]
[null,"Содир бўлган, лекин хабар қилинмаган зарарлар захирасидаги қайта суғурталовчиларнинг улуши (8130)",null,null,700]
[null,"Ҳаёт суғуртаси бўйича захиралардаги қайта суғурталовчиларнинг улуши (8140)",null,null,710]
[null,"II бўлим бўйича жами (сатр.580 - 670)",null,null,720]
[null,"III. Мажбуриятлар"]
[null,"Узоқ муддатли мажбуриятлар, жами (сатр. 740 + 750 + 850 + 860 + 870 + 880 + 890 + 900 + 910 + 920)",null,null,730]
[null,"шу жумладан: узоқ муддатли кредиторлик қарзлари (сатр.740 + 760 + 770 + 780 + 790 + 800 + 820 + 830 + 850 + 870 + 890 + 920)",null,null,731]
[null,"Мол етказиб берувчилар ва пудратчиларга узоқ муддатли қарз (7010, 7020)",null,null,740]
[null,"Суғурта операциялари бўйича узоқ муддатли мажбуриятлар, жами (сатр. 760 + 770 + 780 + 790 + 800 + 810 + 820 + 830)",null,null,750]
[null,"Огоҳлантириш чора -тадбирларини амалга оширувчи пудратчиларга узоқ муддатли қарзлар (7011)",null,null,760]
[null,"Суғурта қилдирувчиларга узоқ муддатли қарзлар (7030)",null,null,770]
[null,"Суғурта агентлари ва брокерларига узоқ муддатли қарзлар (7040)",null,null,780]
[null,"Қайта суғурта қилдирувчиларга узоқ муддатли қарзлар (7050)",null,null,790]
[null,"Қайта суғурталовчиларга узоқ муддатли қарзлар (7060)",null,null,800]
[null,"Қайта суғурталовчиларнинг депо мукофотлари (7070)",null,null,810]
[null,"Қайта суғурта қилдирувчиларга комиссион мукофотлар, тантьема ва бошқа мукофотлар бўйича узоқ муддатли қарзлар (7080)",null,null,820]
[null,"Актуарийлар, аджастерлар, сюрвейерлар ва ассистансларга узоқ муддатли қарзлар (7090)",null,null,830]
[null,"Алоҳида бўлинмаларга узоқ муддатли қарз (7110)",null,null,840]
[null,"Шўъба ва қарам хўжалик жамиятларга узоқ муддатли қарз (7120)",null,null,850]
[null,"Узоқ муддатли кечиктирилган даромадлар (7210, 7220, 7230)",null,null,860]
[null,"Солиқ ва бошқа мажбурий тўловлар бўйича узоқ муддатли кечиктирилган мажбуриятлар (7240)",null,null,870]
[null,"Бошқа узоқ муддатли кечиктирилган мажбуриятлар (7250, 7290)",null,null,880]
[null,"Харидорлар ва буюртмачилардан олинган бўнаклар (7300)",null,null,890]
[null,"Узоқ муддатли банк кредитлари (7810)",null,null,900]
[null,"Узоқ муддатли қарзлар (7820, 7830, 7840)",null,null,910]
[null,"Бошқа узоқ муддатли кредиторлик қарзлар (7900)",null,null,920]
[null,"Жорий мажбуриятлар, жами (сатр. 940 + 950 +1050 + 1060 + 1070 + 1080 + 1090 + 1100 + 1110 + 1120 +1130 + 1140 + 1150 + 1160 + 1170 + 1180)",null,null,930]
[null,"шу жумладан: жорий кредиторлик қарзлари (сатр. 940 + 960 + 970 + 980 + 990 + 1000 + 1020 + 1030 + 1050 + 1070 + 1090 + 1100 +1110 + 1120 + 1130 + 1140 + 1180)",null,null,931]
[null,"шундан: муддати ўтган жорий кредиторлик қарзлари*",null,null,932]
[null,"Мол етказиб берувчилар ва пудратчиларга қарз (6010, 6020)",null,null,940]
[null,"Суғурта операциялари бўйича мажбуриятлар, жами (сатр. 960 + 970 + 980 + 990 + 1000 + 1010 + 1020 + 1030)",null,null,950]
[null,"Огоҳлантириш чора -тадбирларини амалга оширувчи пудратчиларга қарзлар (6011) ",null,null,960]
[null,"Суғурта қилдирувчиларга қарзлар (6030)",null,null,970]
[null,"Суғурта агентлари ва брокерларига қарзлар (6040)",null,null,980]
[null,"Қайта суғурта қилдирувчиларга қарзлар (6050)",null,null,990]
[null,"Қайта суғурталовчиларга қарзлар (6060)",null,null,1000]
[null,"Қайта суғурталовчиларнинг депо мукофотлари (6070)",null,null,1010]
[null,"Қайта суғурта қилдирувчиларга комиссион мукофотлар, тантъема ва бошқа мукофотлар бўйича қарзлари (6080)",null,null,1020]
[null,"Актуарийлар, аджастерлар, сюрвейерлар ва ассистансларга қарзлар (6090)",null,null,1030]
[null,"Алоҳида бўлинмаларга қарз (6110)",null,null,1040]
[null,"Шўъба ва қарам хўжалик жамиятларига қарз (6120)",null,null,1050]
[null,"Кечиктирилган даромадлар (6210, 6220, 6230)",null,null,1060]
[null,"Солиқлар ва бошқа мажбурий тўловлар бўйича кечиктирилган мажбуриятлар (6240)",null,null,1070]
[null,"Бошқа кечиктирилган мажбуриятлар (6250, 6290)",null,null,1080]
[null,"Олинган бўнаклар (6300)",null,null,1090]
[null,"Бюджетга тўловлар бўйича қарз (6400)",null,null,1100]
[null,"Суғурта бўйича қарз (6510)",null,null,1110]
[null,"Мақсадли давлат жамғармаларига тўловлар бўйича қарз (6520)",null,null,1120]
[null,"Таъсисчиларга бўлган қарзлар (6600)",null,null,1130]
[null,"Меҳнатга ҳақ тўлаш бўйича қарз (6700)",null,null,1140]
[null,"Қисқа муддатли банк кредитлари (6810)",null,null,1150]
[null,"Қисқа муддатли қарзлар (6820, 6830, 6840)",null,null,1160]
[null,"Узоқ муддатли мажбуриятларнинг жорий қисми (6950)",null,null,1170]
[null,"Бошқа кредиторлик қарзлар (6950 дан ташқари 6900)",null,null,1180]
[null,"III бўлим бўйича жами (сатр.730 + 930)",null,null,1190]
[null,"Баланс пассиви бўйича жами (сатр.570 + 720 + 1190)",null,null,1200]
[]
[null,"* Муддати ўтган дебиторлик ва кредиторлик қарзлари мавжуд бўлган ҳолларда уларнинг расшифровкаси Бухгалтерия баланси — 1-сонли шакл — суғуртанинг иловасига мувофиқ келтирилади. "]

{"sheet":"1945_2_uz","index":17,"n_rows":23,"n_cols":7,"rows_kept":23,"cut":false,"hidden":true,"merged":[[12,1,12,3],[0,2,0,4],[1,2,1,4],[2,2,2,4],[3,2,3,4],[4,2,4,4],[6,1,6,3],[7,1,7,3],[8,1,8,3],[9,1,9,3],[10,1,10,3],[11,1,11,3],[19,1,19,3],[20,1,20,3],[22,1,24,6],[13,1,13,3],[14,1,14,3],[15,1,15,3],[16,1,16,3],[17,1,17,3],[18,1,18,3]]}
[null,"Қайд рақами",{"$f":"VLOOKUP($C$5,#REF!,2,FALSE)","v":1945},null,null,"Жадваллар рўйхати"]
[null,"Ҳужжат номи",{"$f":"VLOOKUP($C$5,#REF!,3,FALSE)","v":"Суғурталовчиларнинг молиявий ҳисобот шаклларини ва уларни тўлдириш бўйича қоидаларни тасдиқлаш тўғрисидаги Молия вазирлиги буйруғи"}]
[null,"Илова рақами",{"$f":"VLOOKUP($C$5,#REF!,4,FALSE)","v":2}]
[null,"Илова номи",{"$f":"VLOOKUP($C$5,#REF!,5,FALSE)","v":"Балансдан ташқари счётларда ҳисобга олинадиган қийматликларнинг мавжудлиги тўғрисида маълумотнома"}]
[null,"Илова коди","1945_2"]
[]
[null,"Кўрсаткичлар номи",null,null,"Сатр коди ","Ҳисобот даври бошига","Ҳисобот даври охирига "]
[null,"Қисқа муддатли ижарага олинган асосий воситалар (001)",null,null,1210]
[null,"Масъул сақлашга қабул қилинган товар-моддий қийматликлар (002)",null,null,1220]
[null,"Қайта ишлашга қабул қилинган материаллар (003)",null,null,1230]
[null,"Комиссияга қабул қилинган товарлар (004)",null,null,1240]
[null,"Ўрнатиш учун қабул қилинган асбоб-ускуналар (005)",null,null,1250]
[null,"Қатъий ҳисобот бланкалари (006)",null,null,1260]
[null,"Тўловга қобилиятсиз дебиторларнинг зарарга ҳисобдан чиқарилган қарзи (007)",null,null,1270]
[null,"Олинган мажбуриятлар ва тўловларнинг таъминоти (008)",null,null,1280]
[null,"Берилган мажбуриятлар ва тўловларнинг таъминоти (009)",null,null,1290]
[null,"Узоқ муддатли ижара шартномасига асосан берилган асосий воситалар (010)",null,null,1300]
[null,"Ссуда шартномаси бўйича олинган мулк (011)",null,null,1310]
[null,"Келгуси даврларда солиқ солинадиган базадан чиқариладиган харажатлар (012)",null,null,1320]
[null,"Вақтинчалик солиқ имтиёзлари (турлари бўйича) (013)",null,null,1330]
[null,"Фойдаланишдаги инвентарь ва хўжалик жиҳозлари (014)",null,null,1340]
[]
[null,"* Муддати ўтган дебиторлик ва кредиторлик қарзлари мавжуд бўлган ҳолларда уларнинг расшифровкаси Бухгалтерия баланси — 1-сонли шакл — суғуртанинг иловасига мувофиқ келтирилади. "]

{"sheet":"1945_3_uz","index":18,"n_rows":49,"n_cols":9,"rows_kept":49,"cut":false,"hidden":true,"merged":[[12,1,12,3],[0,2,0,6],[1,2,1,6],[2,2,2,6],[3,2,3,6],[4,2,4,6],[6,1,7,3],[6,4,7,4],[6,5,6,6],[6,7,6,8],[8,1,8,3],[9,1,9,3],[10,1,10,3],[11,1,11,3],[24,1,24,3],[13,1,13,3],[14,1,14,3],[15,1,15,3],[16,1,16,3],[17,1,17,3],[18,1,18,3],[19,1,19,3],[20,1,20,3],[21,1,21,3],[22,1,22,3],[23,1,23,3],[36,1,36,3],[25,1,25,3],[26,1,26,3],[27,1,27,3],[28,1,28,3],[29,1,29,3],[30,1,30,3],[31,1,31,3],[32,1,32,3],[33,1,33,3],[34,1,34,3],[35,1,35,3],[48,1,48,3],[37,1,37,3],[38,1,38,3],[39,1,39,3],[40,1,40,3],[41,1,41,3],[42,1,42,3],[43,1,43,3],[44,1,44,3],[45,1,45,3],[46,1,46,3],[47,1,47,3]]}
[null,"Қайд рақами",{"$f":"VLOOKUP($C$5,#REF!,2,FALSE)","v":1945},null,null,null,null,"Жадваллар рўйхати"]
[null,"Ҳужжат номи",{"$f":"VLOOKUP($C$5,#REF!,3,FALSE)","v":"Суғурталовчиларнинг молиявий ҳисобот шаклларини ва уларни тўлдириш бўйича қоидаларни тасдиқлаш тўғрисидаги Молия вазирлиги буйруғи"}]
[null,"Илова рақами",{"$f":"VLOOKUP($C$5,#REF!,4,FALSE)","v":3}]
[null,"Илова номи",{"$f":"VLOOKUP($C$5,#REF!,5,FALSE)","v":"Молиявий натижалар тўғрисидаги ҳисобот — 2-сонли шакл — суғурта"}]
[null,"Илова коди","1945_3"]
[]
[null,"Кўрсаткичлар номи",null,null,"Сатр коди","Ўтган йилнинг шу даврида",null,"Ҳисобот даврида"]
[null,null,null,null,null,"Даромад лар (фойда)","Харажат лар (зарарлар) ","Даромад лар (фойда)","Харажат лар (зарарлар)"]
[null,"Суғурта хизматларини кўрсатишдан даромадлар, (сатр.011-012+013+/-014+/-015+/-016+/-017+/-018+019), шу жумладан:",null,null,10]
[null,"Тўғридан-тўғри суғурта қилиш ва биргаликда суғурта қилиш бўйича (биргаликда суғурта қилиш шартномасида суғурталовчининг белгиланган улуши қисмида) суғурта мукофотлари",null,null,11]
[null,"Қайта суғурта қилишга берилган шартномалар бўйича суғурта мукофотлари",null,null,12]
[null,"Қайта суғурта қилишга қабул қилинган шартномалар бўйича суғурта мукофотлари",null,null,13]
[null,"Ишлаб топилмаган мукофотлар захирасидаги қайта суғурталовчиларнинг улушини ҳисобга олган ҳолдаги, ишлаб топилмаган мукофотлар захираси ўзгаришининг натижаси",null,null,14]
[null,"Хабар қилинган, лекин бартараф этилмаган зарарлар захирасидаги қайта суғурталовчиларнинг улушини ҳисобга олган ҳолдаги, хабар қилинган, лекин бартараф этилмаган зарарлар захираси ўзгаришининг натижаси",null,null,15]
[null,"Содир бўлган, лекин хабар қилинмаган зарарлар захирасидаги қайта суғурталовчиларнинг улушини ҳисобга олган ҳолдаги, содир бўлган, лекин хабар қилинмаган зарарлар захираси ўзгаришининг натижаси",null,null,16]
[null,"Ҳаёт суғуртаси бўйича захиралардаги қайта суғурталовчиларнинг улушини ҳисобга олган ҳолдаги, ҳаёт суғуртаси бўйича захиралар ўзгаришининг натижаси",null,null,17]
[null,"Бошқа техник захиралардаги қайта суғурталовчиларнинг улушини ҳисобга олган ҳолдаги, тегишли захиралар ўзгаришининг натижаси",null,null,18]
[null,"Суғурта хизматларини кўрсатишдан бошқа даромадлар",null,null,19]
[null,"Воситачилик хизматини кўрсатишдан даромадлар",null,null,20]
[null,"Қайта суғурта бўйича зарарлар улушининг қопланиши бўйича даромадлар",null,null,30]
[null,"Қайта суғурта бўйича комиссион мукофотлар, тантьемалар ва йиғимлар бўйича даромадлар",null,null,40]
[null,"Аджастер ва сюрвейер хизматларини кўрсатишдан олинган даромадлар",null,null,50]
[null,"Суғурта хизматларини кўрсатишдан соф тушум (сатр. 010+020+030+040+050)",null,null,60]
[null,"Кўрсатилган суғурта хизматларининг таннархи",null,null,70]
[null,"Суғурта хизматларини кўрсатишдан ялпи фойда (зарар) (сатр.060-070)",null,null,80]
[null,"Давр харажатлари, жами (сатр.100+110+120+130), шу жумладан:",null,null,90]
[null,"Сотиш харажатлари",null,null,100]
[null,"Маъмурий харажатлар",null,null,110]
[null,"Бошқа операцион харажатлар",null,null,120]
[null,"Келгусида солиққа тортиладиган базадан чиқариладиган ҳисобот даври харажатлари",null,null,130]
[null,"Асосий фаолиятнинг бошқа даромадлари",null,null,140]
[null,"Асосий фаолиятнинг фойдаси (зарари) (сатр.080-090+140)",null,null,150]
[null,"Молиявий фаолиятнинг даромадлари, жами (сатр.170+180+190+200+210), шу жумладан:",null,null,160]
[null,"Дивидендлар кўринишидаги даромадлар",null,null,170]
[null,"Фоизлар кўринишидаги даромадлар",null,null,180]
[null,"Узоқ муддатли ижара (лизинг) дан даромадлар",null,null,190]
[null,"Валюта курси фарқларидан даромадлар",null,null,200]
[null,"Молиявий фаолиятнинг бошқа даромадлари",null,null,210]
[null,"Молиявий фаолият бўйича харажатлар, жами (сатр.230+240+250+260), шу жумладан:",null,null,220]
[null,"Фоизлар кўринишидаги харажатлар",null,null,230]
[null,"Узоқ муддатли ижара (лизинг) бўйича фоизлар кўринишидаги харажатлар",null,null,240]
[null,"Валюта курси фарқларидан зарарлар",null,null,250]
[null,"Молиявий фаолият бўйича бошқа харажатлар",null,null,260]
[null,"Умумхўжалик фаолиятининг фойдаси (зарари) (сатр.150+160-220)",null,null,270]
[null,"Фавқулоддаги фойда ва зарарлар",null,null,280]
[null,"Фойда солиғини тўлагунга қадар фойда (зарар) (сатр.270+/-280)",null,null,290]
[null,"Фойда солиғи",null,null,300]
[null,"Фойдадан бошқа солиқлар ва бошқа мажбурий тўловлар",null,null,310]
[null,"Ҳисобот даврининг соф фойдаси (зарари) (сатр.290-300-310)",null,null,320]

{"sheet":"1945_4_uz","index":19,"n_rows":26,"n_cols":7,"rows_kept":26,"cut":false,"hidden":true,"merged":[[6,1,6,3],[0,2,0,4],[1,2,1,4],[2,2,2,4],[3,2,3,4],[4,2,4,4],[18,1,18,3],[7,1,7,3],[8,1,8,3],[9,1,9,3],[10,1,10,3],[11,1,11,3],[12,1,12,3],[13,1,13,3],[14,1,14,3],[15,1,15,3],[16,1,16,3],[17,1,17,3],[25,1,25,3],[19,1,19,3],[20,1,20,3],[21,1,21,3],[22,1,22,3],[23,1,23,3],[24,1,24,3]]}
[null,"Қайд рақами",{"$f":"VLOOKUP($C$5,#REF!,2,FALSE)","v":1945},null,null,"Жадваллар рўйхати"]
[null,"Ҳужжат номи",{"$f":"VLOOKUP($C$5,#REF!,3,FALSE)","v":"Суғурталовчиларнинг молиявий ҳисобот шаклларини ва уларни тўлдириш бўйича қоидаларни тасдиқлаш тўғрисидаги Молия вазирлиги буйруғи"}]
[null,"Илова рақами",{"$f":"VLOOKUP($C$5,#REF!,4,FALSE)","v":4}]
[null,"Илова номи",{"$f":"VLOOKUP($C$5,#REF!,5,FALSE)","v":"Бюджетга тўловлар тўғрисида маълумотнома"}]
[null,"Илова коди","1945_4"]
[]
[null,"Кўрсаткичлар номи",null,null,"Сатр коди","Ҳисобот даври учун ҳисоб-китоб бўйича тўланади","Ҳисобот даври учун ҳисоб-китоб бўйича тўланадигандан ҳақиқатда тўлангани"]
[null,"Юридик шахслардан олинадиган фойда солиғи",null,null,330]
[null,"Жисмоний шахслардан олинадиган даромад солиғи",null,null,340]
[null,"шу жумладан: шахсий жамғариб бориладиган пенсия ҳисобварақларига ажратмалар",null,null,341]
[null,"Қўшилган қиймат солиғи",null,null,360]
[null,"Акциз солиғи",null,null,370]
[null,"Ер қаъридан фойдаланганлик учун солиқ",null,null,380]
[null,"Сув ресурсларидан фойдаланганлик учун солиқ",null,null,390]
[null,"Юридик шахсларнинг мол-мулкига солинадиган солиқ",null,null,400]
[null,"Юридик шахслардан олинадиган ер солиғи",null,null,410]
[null,"Ягона солиқ тўлови",null,null,420]
[null,"Ягона ер солиғи",null,null,430]
[null,"Қатъий белгиланган солиқ",null,null,440]
[null,"Бошқа солиқлар",null,null,450]
[null,"Давлат мақсадли жамғармаларига мажбурий ажратмалар",null,null,460]
[null,"Ягона ижтимоий тўлов",null,null,490]
[null,"Импорт бўйича божхона божи",null,null,500]
[null,"Маҳаллий мажбурий тўловлар",null,null,510]
[null,"Бюджетга тўловларнинг кечиктирилганлиги учун молиявий санкциялар",null,null,520]
[null,"Жами бюджетга тўловлар суммаси (330 дан 520 сатргача 341 сатрдан ташқари)",null,null,530]

{"sheet":"1945_5_uz","index":20,"n_rows":47,"n_cols":7,"rows_kept":47,"cut":false,"hidden":true,"merged":[[12,1,12,3],[0,2,0,4],[1,2,1,4],[2,2,2,4],[3,2,3,4],[4,2,4,4],[6,1,6,3],[7,1,7,3],[8,1,8,3],[9,1,9,3],[10,1,10,3],[11,1,11,3],[24,1,24,3],[13,1,13,3],[14,1,14,3],[15,1,15,3],[16,1,16,3],[17,1,17,3],[18,1,18,3],[19,1,19,3],[20,1,20,3],[21,1,21,3],[22,1,22,3],[23,1,23,3],[36,1,36,3],[25,1,25,3],[26,1,26,3],[27,1,27,3],[28,1,28,3],[29,1,29,3],[30,1,30,3],[31,1,31,3],[32,1,32,3],[33,1,33,3],[34,1,34,3],[35,1,35,3],[43,1,43,3],[44,1,44,3],[45,1,45,3],[46,1,46,3],[37,1,37,3],[38,1,38,3],[39,1,39,3],[40,1,40,3],[41,1,41,3],[42,1,42,3]]}
[null,"Қайд рақами",{"$f":"VLOOKUP($C$5,#REF!,2,FALSE)","v":1945},null,null,"Жадваллар рўйхати"]
[null,"Ҳужжат номи",{"$f":"VLOOKUP($C$5,#REF!,3,FALSE)","v":"Суғурталовчиларнинг молиявий ҳисобот шаклларини ва уларни тўлдириш бўйича қоидаларни тасдиқлаш тўғрисидаги Молия вазирлиги буйруғи"}]
[null,"Илова рақами",{"$f":"VLOOKUP($C$5,#REF!,4,FALSE)","v":5}]
[null,"Илова номи",{"$f":"VLOOKUP($C$5,#REF!,5,FALSE)","v":"Пул оқимлари тўғрисидаги ҳисобот — 4-сонли шакл — суғурта"}]
[null,"Илова коди","1945_5"]
[]
[null,"Кўрсаткичлар номи",null,null,"Сатр коди","Кирим","Чиқим"]
[null,"Операцион фаолият"]
[null,"Суғурта операциялари бўйича пул тушумлари, жами (сатр 020+030+040+050+060), шу жумладан:",null,null,10]
[null,"Суғурта ва биргаликда суғурта қилиш шартномалари бўйича суғурта мукофотлари кўринишида келиб тушган пул маблағлари",null,null,20]
[null,"Қайта суғурта қилиш шартномалари бўйича суғурта мукофотлари кўринишида келиб тушган пул маблағлари",null,null,30]
[null,"Суғурта воситачиси, аджастери, сюрвейери хизматларини кўрсатишдан келиб тушган пул маблағлари",null,null,40]
[null,"Қайта суғурта қилиш бўйича комиссион мукофотлар, тантьемалар ва йиғимлар кўринишида келиб тушган пул маблағлари",null,null,50]
[null,"Қайта суғурта қилиш ва ретроцессияга берилган таваккалчиликлар бўйича зарарлар улушини қоплаш бўйича келиб тушган пул маблағлари",null,null,60]
[null,"Суғурта операциялари бўйича пул тўловлари, жами (сатр 080+090+100+110+120+130), шу жумладан:",null,null,70]
[null,"Қайта суғурта ва ретроцессия шартномалари бўйича суғурта мукофотлари кўринишида тўланган пул маблағлари",null,null,80]
[null,"Суғурта ва биргаликда суғурта қилиш шартномалари бўйича суғурта товонлари кўринишида тўланган пул маблағлари",null,null,90]
[null,"Қайта суғурта қилиш ва ретроцессия бўйича қабул қилинган таваккалчиликлар бўйича зарарлар улушини қоплаш кўринишида тўланган пул маблағлари",null,null,100]
[null,"Суғурта воситачиларига суғурта, биргаликда суғурта қилиш ва қайта суғурта қилиш шартномаларини тузганлик учун мукофотлар кўринишида тўланган пул маблағлари",null,null,110]
[null,"Актуарийлар, аджастерлар, сюрвейерлар, ассистанслар томонидан кўрсатилган хизматлар учун тўланган пул маблағлари",null,null,120]
[null,"Огоҳлантириш чора - тадбирларини молиялаштиришга тўланган пул маблағлари",null,null,130]
[null,"Ходимларга ва улар номидан тўланган пул маблағлари",null,null,140]
[null,"Операцион фаолиятнинг бошқа пул тушумлари ва тўловлари",null,null,150]
[null,"Жами: операцион фаолиятнинг соф пул кирими/чиқими (сатр. 010-070-140+/-150)",null,null,160]
[null,"Инвестиция фаолияти "]
[null,"Асосий воситаларни сотиб олиш ва сотиш",null,null,170]
[null,"Номоддий активларни сотиб олиш ва сотиш",null,null,180]
[null,"Узоқ ва қиска муддатли инвестицияларни сотиб олиш ва сотиш",null,null,190]
[null,"Инвестицион фаолиятнинг бошқа пул тушумлари ва тўловлари",null,null,200]
[null,"Жами: инвестицион фаолиятнинг соф пул кирими/чиқими (сатр. 170+/-180+/-190+/-200)",null,null,210]
[null,"Молиявий фаолият "]
[null,"Олинган ва тўланган фоизлар",null,null,220]
[null,"Олинган ва тўланган дивидендлар",null,null,230]
[null,"Акциялар чиқаришдан ёки хусусий капитал билан боғлиқ бўлган бошқа инструментлардан тушган пул тушумлари",null,null,240]
[null,"Хусусий акцияларни сотиб олганда ва уларни сотганда пул тўловлари ва тушумлари",null,null,250]
[null,"Узоқ ва қисқа муддатли кредит ва қарзлар бўйича пул тушумлари ва тўловлари",null,null,260]
[null,"Узоқ муддатли ижара (лизинг) бўйича пул тушумлари ва тўловлари",null,null,270]
[null,"Молиявий фаолиятнинг бошқа пул тушумлари ва тўловлари",null,null,280]
[null,"Жами: молиявий фаолиятнинг соф пул кирими/чиқими (сатр 220+/-230+240+/-250+/-260+/-270+/-280)",null,null,290]
[null,"Солиққа тортиш "]
[null,"Тўланган фойда солиғи",null,null,300]
[null,"Тўланган бошқа солиқлар",null,null,310]
[null,"Жами: тўланган солиқлар (сатр 300+310)",null,null,320]
[null,"Жами: молиявий-хўжалик фаолиятининг соф пул кирими/чиқими (сатр 160+/-210+/-290-320)",null,null,330]
[null,"Чет эл валютасидаги пул маблағларини қайта баҳолашдан юзага келган курс фарқлари сальдоси.",null,null,331]
[null,"Йил бошидаги пул маблағлари",null,null,340]
[null,"Йил охиридаги пул маблағлари",null,null,350]

{"sheet":"1945_6_uz","index":21,"n_rows":19,"n_cols":6,"rows_kept":19,"cut":false,"hidden":true,"merged":[[6,1,6,3],[0,2,0,4],[1,2,1,4],[2,2,2,4],[3,2,3,4],[4,2,4,4],[18,1,18,3],[7,1,7,3],[8,1,8,3],[9,1,9,3],[10,1,10,3],[11,1,11,3],[12,1,12,3],[13,1,13,3],[14,1,14,3],[15,1,15,3],[16,1,16,3],[17,1,17,3]]}
[null,"Қайд рақами",{"$f":"VLOOKUP($C$5,#REF!,2,FALSE)","v":1945},null,null,"Жадваллар рўйхати"]
[null,"Ҳужжат номи",{"$f":"VLOOKUP($C$5,#REF!,3,FALSE)","v":"Суғурталовчиларнинг молиявий ҳисобот шаклларини ва уларни тўлдириш бўйича қоидаларни тасдиқлаш тўғрисидаги Молия вазирлиги буйруғи"}]
[null,"Илова рақами",{"$f":"VLOOKUP($C$5,#REF!,4,FALSE)","v":6}]
[null,"Илова номи",{"$f":"VLOOKUP($C$5,#REF!,5,FALSE)","v":"Чет эл валютасидаги пул маблағларининг ҳаракати тўғрисида маълумотнома"}]
[null,"Илова коди","1945_6"]
[]
[null,"Кўрсаткичлар номи",null,null,"Сатр коди","Миқдори"]
[null,"Йил бошига қолдиқ",null,null,360]
[null,"Келиб тушган валюта маблағлари, жами (сатр 371+372+373+374), шу жумладан",null,null,370]
[null,"Сотишдан олинган тушум",null,null,371]
[null,"Конвертация қилинган",null,null,372]
[null,"Молиявий фаолият бўйича",null,null,373]
[null,"Бошқа манбалар",null,null,374]
[null,"Сарфланган валюта маблағлари, жами (сатр 381+382+383), шу жумладан",null,null,380]
[null,"Мол етказиб берувчилар ва пудратчиларга тўловлар",null,null,381]
[null,"Молиявий фаолият бўйича тўловлар",null,null,382]
[null,"Бошқа мақсадлар учун",null,null,383]
[null,"Чет эл валютасидаги пул маблағларини қайта баҳолашдан юзага келган курс фарқлари сальдоси",null,null,390]
[null,"Йил охиридаги қолдиқ (сатр. 360+370-380+/-390)",null,null,400]

{"sheet":"1945_7_uz","index":22,"n_rows":29,"n_cols":12,"rows_kept":29,"cut":false,"hidden":true,"merged":[[6,1,6,3],[0,2,0,6],[1,2,1,6],[2,2,2,6],[3,2,3,6],[4,2,4,6],[18,1,18,3],[7,1,7,3],[8,1,8,3],[9,1,9,3],[10,1,10,3],[11,1,11,3],[12,1,12,3],[13,1,13,3],[14,1,14,3],[15,1,15,3],[16,1,16,3],[17,1,17,3],[25,1,25,3],[26,1,26,3],[27,1,27,3],[28,1,28,3],[19,1,19,3],[20,1,20,3],[21,1,21,3],[22,1,22,3],[23,1,23,3],[24,1,24,3]]}
[null,"Қайд рақами",{"$f":"VLOOKUP($C$5,#REF!,2,FALSE)","v":1945},null,null,null,null,"Жадваллар рўйхати"]
[null,"Ҳужжат номи",{"$f":"VLOOKUP($C$5,#REF!,3,FALSE)","v":"Суғурталовчиларнинг молиявий ҳисобот шаклларини ва уларни тўлдириш бўйича қоидаларни тасдиқлаш тўғрисидаги Молия вазирлиги буйруғи"}]
[null,"Илова рақами",{"$f":"VLOOKUP($C$5,#REF!,4,FALSE)","v":7}]
[null,"Илова номи",{"$f":"VLOOKUP($C$5,#REF!,5,FALSE)","v":"Хусусий капитал тўғрисидаги ҳисобот — 5-сонли шакл — суғурта"}]
[null,"Илова коди","1945_7"]
[]
[null,"Кўрсаткичлар номи",null,null,"Сатр коди","Устав капитали","Қўшилган капитал","Захира капитали","Тақсимланмаган фойда (қопланмаган зарар)","Сотиб олинган хусусий акциялар","Мақсадли тушумлар ва бошқалар","Жами"]
[null,"Йил бошидаги қолдиқ",null,null,10]
[null,"Қимматли қоғозлар эмиссияси",null,null,20]
[null,"Узоқ муддатли активларни қайта баҳолаш",null,null,30]
[null,"Устав капиталини шакллантиришда пайдо бўлган валюта курси фарқлари",null,null,40]
[null,"Захира капиталига ажратмалар",null,null,50]
[null,"Ҳисобот йилининг тақсимланмаган фойдаси (қопланмаган зарари)",null,null,60]
[null,"Текинга олинган мол-мулк",null,null,70]
[null,"Мақсадли фойдаланиш учун олинган маблағлар",null,null,80]
[null,"Тўланган дивидендлар",null,null,90]
[null,"Хусусий капитал шаклланишининг бошқа манбалари",null,null,100]
[null,"Йил охиридаги қолдиқ",null,null,110]
[null,"Хусусий капиталининг кўпайиши (+) ёки камайиши (-)",null,null,120]
[null,"МАЪЛУМОТ УЧУН:"]
[null,"Чиқарилган акциялар сони, дона",null,null,130]
[null,"шу жумладан:"]
[null,"имтиёзли",null,null,131]
[null,"оддий",null,null,132]
[null,"Акциянинг номинал қиймати",null,null,140]
[null,"Муомаладаги акциялар сони, дона",null,null,150]
[null,"шу жумладан:"]
[null,"имтиёзли",null,null,151]
[null,"оддий",null,null,152]

{"sheet":"1806_1_ru","index":23,"n_rows":35,"n_cols":4,"rows_kept":35,"cut":false,"hidden":true,"merged":[]}
[null,"Рег. номер",{"$f":"VLOOKUP($C$5,#REF!,2,FALSE)","v":1806},"Список таблиц"]
[null,"Наим. док-та",{"$f":"VLOOKUP($C$5,#REF!,3,FALSE)","v":"Положение о платежеспособности страховщиков и перестраховщиков"}]
[null,"Номер прил-я",{"$f":"VLOOKUP($C$5,#REF!,4,FALSE)","v":1}]
[null,"Наим. прил-я",{"$f":"VLOOKUP($C$5,#REF!,5,FALSE)","v":"Расчет норматива достаточности маржи платежеспособности страховщика, осуществляющего деятельность в отрасли общего страхования (исключительно по перестрахованию)"}]
[null,"Код прил-я","1806_1"]
[]
[null,"№ п/п","Наименование норматива","Величина (тыс. сум.)"]
[null,"1.","Минимальный размер уставного капитала, установленный для страховщика в соответствии с законодательством о страховой деятельности"]
[null,"2.","Сумма начисленных страховых возмещений, за вычетом доли перестраховщиков в течение предыдущих 36 месяцев"]
[null,"3.","Сумма начисленных страховых возмещений в течение предыдущих 36 месяцев"]
[null,"4.","Поправочный коэффициент для отрасли общего страхования (отношение строки 2 к строке 3, но не менее 0,5)"]
[null,"5.","Сумма начисленных страховых премий по всем договорам страхования (перестрахования) в течение предыдущих 12 месяцев"]
[null,"6.","50% от суммы начисленных страховых премий по договорам страхования (перестрахования) в течение предыдущих 12 месяцев по классам страхования 11 и 13 "]
[null,"7.","Сумма страховых премий, возвращенных страхователям (перестрахователям) в связи с расторжением (изменением условий) договоров страхования (перестрахования), заключенных в течение предыдущих 12 месяцев"]
[null,"8.","20% от суммы строк 5 и 6 за вычетом величины строки 7 "]
[null,"9.","Величина, рассчитанная по «методу премий» (величина, рассчитанная путем умножения величины строки 4 на величину строки 8)"]
[null,"10.","50% от суммы начисленных страховых возмещений по договорам страхования (перестрахования) в течение предыдущих 36 месяцев по классам страхования 11 и 13 "]
[null,"11.","Величина резерва заявленных, но неурегулированных убытков на отчетную дату "]
[null,"12.","50% от величины резерва заявленных, но неурегулированных убытков на отчетную дату по классам страхования 11 и 13 "]
[null,"13.","10% от суммы строк 3, 10, 11 и 12 "]
[null,"14.","Величина, рассчитанная по «методу выплат» (величина, рассчитанная путем умножения величины строки 4 на величину строки 13)"]
[null,"15.","Нормативный размер маржи платежеспособности (наибольшая величина из строк 1, 9 и 14) "]
[null,"16.","Сумма источников собственных средств (сумма по итогу раздела I пассива бухгалтерского баланса)"]
[null,"17.","Сумма нематериальных активов, за исключением программного обеспечения, приобретенного для целей основной деятельности страховщика, но не более 10% от активов страховщика"]
[null,"18.","Сумма задолженности учредителей по вкладам в уставный капитал"]
[null,"19.","Сумма целевых поступлений и резервов предстоящих расходов и платежей"]
[null,"20.","Сумма части нераспределенной прибыли, предназначенная для распределения между учредителями (акционерами)"]
[null,"21.","Сумма займов, выданных учредителям, акционерам и работникам, а также накопленные проценты по ним"]
[null,"22.","Сумма задолженности дебиторов — связанных лиц"]
[null,"23.","Сумма страховых премий, не оплаченных страхователями (перестрахователями) в течение более чем трех месяцев с даты оплаты, установленной договором страхования (перестрахования)"]
[null,"24.","Сумма дебиторской задолженности по налогам и другим обязательным платежам"]
[null,"25.","Суммы по гарантиям"]
[null,"26.","Сумма величин строк с 17 по 25"]
[null,"27.","Фактический размер маржи платежеспособности (разница величин строк 16 и 26)"]
[null,"28.","Норматив достаточности маржи платежеспособности (отношение величины строки 27 к величине строки 15)"]

{"sheet":"1806_2_ru","index":24,"n_rows":39,"n_cols":4,"rows_kept":39,"cut":false,"hidden":true,"merged":[[37,1,37,3],[38,1,39,3]]}
[null,"Рег. номер",{"$f":"VLOOKUP($C$5,#REF!,2,FALSE)","v":1806},"Список таблиц"]
[null,"Наим. док-та",{"$f":"VLOOKUP($C$5,#REF!,3,FALSE)","v":"Положение о платежеспособности страховщиков и перестраховщиков"}]
[null,"Номер прил-я",{"$f":"VLOOKUP($C$5,#REF!,4,FALSE)","v":2}]
[null,"Наим. прил-я",{"$f":"VLOOKUP($C$5,#REF!,5,FALSE)","v":"Расчет норматива достаточности маржи платежеспособности страховщика, осуществляющего деятельность в отрасли страхования жизни"}]
[null,"Код прил-я","1806_2"]
[]
[null,"№ п/п","Наименование норматива","Величина (тыс. сум.)"]
[null,"1.","Минимальный размер уставного капитала, установленный для страховщика в соответствии с законодательством о страховой деятельности"]
[null,"2.","Величина резерва премий, за вычетом доли перестраховщиков в резерве премий"]
[null,"3.","Величина резерва премий"]
[null,"4.","Поправочный коэффициент для отрасли страхования жизни (отношение строки 2 к строке 3, но не менее 0,85)"]
[null,"5.","Результат произведения 5% от величины строки 3 на величину строки 4 "]
[null,"6.","Сумма начисленных страховых возмещений по договорам страхования (перестрахования) по классам 1 и 2 отрасли общего страхования, за вычетом доли перестраховщиков в течение предыдущих 36 месяцев"]
[null,"7.","Сумма начисленных страховых возмещений по договорам страхования (перестрахования) по классам 1 и 2 отрасли общего страхования в течение предыдущих 36 месяцев"]
[null,"8.","Поправочный коэффициент для классов 1 и 2 отрасли общего страхования (отношение строки 6 к строке 7, но не менее 0,5)"]
[null,"9.","Сумма начисленных страховых премий по договорам страхования (перестрахования) по классам 1 и 2 отрасли общего страхования в течение предыдущих 12 месяцев"]
[null,"10.","Сумма страховых премий по договорам страхования (перестрахования) по классам 1 и 2 отрасли общего страхования, возвращенных страхователям (перестрахователям) в связи с расторжением (изменением условий) договоров страхования (перестрахования), заключенных в течение предыдущих 12 месяцев"]
[null,"11.","20% от результата вычитания от величины строки 9 величины строки 10 "]
[null,"12.","Величина резерва заявленных, но неурегулированных убытков по классам 1 и 2 отрасли общего страхования на отчетную дату "]
[null,"13.","10% от суммы строк 7 и 12 "]
[null,"14.","Наибольшая величина из строк 11 и 13"]
[null,"15.","Величина, рассчитанная путем умножения величины строки 8 на величину строки 14"]
[null,"16.","Сумма строк 5 и 15*"]
[null,"17.","Нормативный размер маржи платежеспособности (наибольшая величина из строк 1 и 16) "]
[null,"18.","Сумма источников собственных средств (сумма по итогу раздела I пассива бухгалтерского баланса)"]
[null,"19.","Сумма нематериальных активов, за исключением программного обеспечения, приобретенного для целей основной деятельности страховщика, но не более 10% от активов страховщика"]
[null,"20.","Сумма задолженности учредителей по вкладам в уставный капитал"]
[null,"21.","Сумма целевых поступлений и резервов предстоящих расходов и платежей"]
[null,"22.","Сумма части нераспределенной прибыли, предназначенная для распределения между учредителями (акционерами)"]
[null,"23.","Сумма займов, выданных учредителям, акционерам и работникам, а также накопленные проценты по ним"]
[null,"24.","Сумма задолженности дебиторов — связанных лиц"]
[null,"25.","Сумма страховых премий, не оплаченных страхователями (перестрахователями) в течение более чем трех месяцев с даты оплаты, установленной договором страхования (перестрахования)"]
[null,"26.","Сумма дебиторской задолженности по налогам и другим обязательным платежам"]
[null,"27.","Суммы по гарантиям"]
[null,"28.","Сумма строк с 19 по 27"]
[null,"29.","Фактический размер маржи платежеспособности (разница величин строк 18 и 28)"]
[null,"30.","Норматив достаточности маржи платежеспособности (отношение величины строки 29 к величине строки 17)"]
[]
[null,"* Строки с 5 по 15 используются только в случае, если страховщик, осуществляющий деятельность в отрасли страхования жизни, дополнительно осуществляет деятельность по классам 1 и 2 отрасли общего страхования."]

{"sheet":"1806_3_ru","index":25,"n_rows":20,"n_cols":5,"rows_kept":20,"cut":false,"hidden":true,"merged":[[20,1,20,4],[0,2,0,3],[1,2,1,3],[2,2,2,3],[3,2,3,3],[4,2,4,3],[6,1,7,1],[6,2,7,2],[6,3,6,4]]}
[null,"Рег. номер",{"$f":"VLOOKUP($C$5,#REF!,2,FALSE)","v":1806},null,"Список таблиц"]
[null,"Наим. док-та",{"$f":"VLOOKUP($C$5,#REF!,3,FALSE)","v":"Положение о платежеспособности страховщиков и перестраховщиков"}]
[null,"Номер прил-я",{"$f":"VLOOKUP($C$5,#REF!,4,FALSE)","v":3}]
[null,"Наим. прил-я",{"$f":"VLOOKUP($C$5,#REF!,5,FALSE)","v":"Сведения о соблюдении требований по предельно допустимому размеру обязательств по отдельным рискам и совокупному размеру обязательств страховщика (перестраховщика) и размещению активов страховщика (перестраховщика)"}]
[null,"Код прил-я","1806_3"]
[]
[null,"№ п/п","Наименование норматива","Величина (тыс. сум.)"]
[null,null,null,"норматив","факт."]
[null,"1.","Максимальный объем обязательств страховщика (перестраховщика) по отдельным рискам, за исключением страхования экспортных контрактов от политических и коммерческих рисков"]
[null,"1.1.","Максимальный объем обязательств страховщика (перестраховщика) по отдельным рискам по страхованию экспортных контрактов от политических и коммерческих рисков"]
[null,"2.","Максимальный объем обязательств страховщика (перестраховщика) по пяти наиболее крупным отдельным рискам"]
[null,"2.1.","Максимальный объем обязательств страховщика (перестраховщика) по пяти наиболее крупным отдельным рискам по страхованию экспортных контрактов от политических и коммерческих рисков"]
[null,"3.","Общая сумма активов страховщика (перестраховщика), размещенных в уставные капиталы других юридических лиц"]
[null,"4.","Максимальное размещение активов страховщика (перестраховщика) в один земельный участок или иной объект недвижимого имущества, или совокупность земельных участков и объектов недвижимого имущества, которые могут рассматриваться как один объект"]
[null,"5.","Максимальный вклад (депозит) в один коммерческий банк"]
[null,"6.","Общая сумма вкладов (депозитов) в кредитных организациях (кроме коммерческих банков) "]
[null,"7.","Максимальное размещение активов страховщика (перестраховщика) в уставный капитал одного юридического лица или другие права участия в одно юридическое лицо"]
[null,"8.","Общая сумма предоставленных займов учредителям, акционерам и работникам страховщика (перестраховщика), а также займов, гарантированных договорами страхования жизни "]
[null,"9.","Максимальный размер привлеченного займа (финансовой помощи)"]
[null,"10.","Денежные средства в кассе и/или на расчетных (валютных) и иных банковских счетах, а также приравниваемые к ним средства"]

{"sheet":"1806_4_ru","index":26,"n_rows":37,"n_cols":6,"rows_kept":37,"cut":false,"hidden":true,"merged":[]}
[null,"Рег. номер",{"$f":"VLOOKUP($C$5,#REF!,2,FALSE)","v":1806},"Список таблиц"]
[null,"Наим. док-та",{"$f":"VLOOKUP($C$5,#REF!,3,FALSE)","v":"Положение о платежеспособности страховщиков и перестраховщиков"}]
[null,"Номер прил-я",{"$f":"VLOOKUP($C$5,#REF!,4,FALSE)","v":4}]
[null,"Наим. прил-я",{"$f":"VLOOKUP($C$5,#REF!,5,FALSE)","v":"Расчет по долевому участию в уставном капитале любого одного юридического лица"}]
[null,"Код прил-я","1806_4"]
[]
[null,"№","Наименование юридического лица ","Размер уставного капитала юридического лица (тыс. сум.)","Величина участия страховщика (перестраховщика) в уставном капитале (тыс. сум.)","Доля участия страховщика (перестраховщика) в уставном капитале (%)"]
[null,1]
[null,{"$f":"B8+1","v":2}]
[null,{"$f":"B9+1","v":3}]
[null,4]
[null,5]
[null,6]
[null,7]
[null,8]
[null,9]
[null,10]
[null,11]
[null,12]
[null,13]
[null,14]
[null,15]
[null,16]
[null,17]
[null,18]
[null,19]
[null,20]
[null,21]
[null,22]
[null,23]
[null,24]
[null,25]
[null,26]
[null,27]
[null,28]
[null,29]
[null,30]

{"sheet":"1806_5_ru","index":27,"n_rows":37,"n_cols":8,"rows_kept":37,"cut":false,"hidden":true,"merged":[[0,2,0,5],[1,2,1,5],[2,2,2,5],[3,2,3,5],[4,2,4,5]]}
[null,"Рег. номер",{"$f":"VLOOKUP($C$5,#REF!,2,FALSE)","v":1806},null,null,null,"Список таблиц"]
[null,"Наим. док-та",{"$f":"VLOOKUP($C$5,#REF!,3,FALSE)","v":"Положение о платежеспособности страховщиков и перестраховщиков"}]
[null,"Номер прил-я",{"$f":"VLOOKUP($C$5,#REF!,4,FALSE)","v":5}]
[null,"Наим. прил-я",{"$f":"VLOOKUP($C$5,#REF!,5,FALSE)","v":"Расчет по сумме активов, размещенных у одного связанного лица или у всех связанных лиц страховщика/перестраховщика"}]
[null,"Код прил-я","1806_5"]
[]
[null,"№","Связанное лицо (наименование или Ф.И.О.) ","Вид размещения","Доходность вложения (в% годовых) ","Сумма размещенных активов","Показатель деятельности страховщика (перестраховщика) со связанными лицами (%)","Норматив (%)"]
[null,1]
[null,{"$f":"B8+1","v":2}]
[null,{"$f":"B9+1","v":3}]
[null,4]
[null,5]
[null,6]
[null,7]
[null,8]
[null,9]
[null,10]
[null,11]
[null,12]
[null,13]
[null,14]
[null,15]
[null,16]
[null,17]
[null,18]
[null,19]
[null,20]
[null,21]
[null,22]
[null,23]
[null,24]
[null,25]
[null,26]
[null,27]
[null,28]
[null,29]
[null,30]

{"sheet":"1806_6_ru","index":28,"n_rows":60,"n_cols":8,"rows_kept":60,"cut":false,"hidden":true,"merged":[[12,1,12,5],[0,2,0,5],[1,2,1,5],[2,2,2,5],[3,2,3,5],[4,2,4,5]]}
[null,"Рег. номер",{"$f":"VLOOKUP($C$5,#REF!,2,FALSE)","v":1806},null,null,null,"Список таблиц"]
[null,"Наим. док-та",{"$f":"VLOOKUP($C$5,#REF!,3,FALSE)","v":"Положение о платежеспособности страховщиков и перестраховщиков"}]
[null,"Номер прил-я",{"$f":"VLOOKUP($C$5,#REF!,4,FALSE)","v":6}]
[null,"Наим. прил-я",{"$f":"VLOOKUP($C$5,#REF!,5,FALSE)","v":"Сведения о соблюдении требований по перестраховочным операциям страховщика/перестраховщика"}]
[null,"Код прил-я","1806_6"]
[]
[null,"Таблица 1","Наименование показателя","Номер строки","Величина: тыс. сум., долл. США, иное ","Примечание"]
[null,null,"Минимальный размер собственного удержания (при перестраховании обязательств у иностранных страховых организаций), за исключением договоров страхования экспортных контрактов от политических и коммерческих рисков и договоров страхования лиц, выезжающих зарубеж",1]
[null,null,"Величина фактического размера маржи платежеспособности страховщика (перестраховщика) за предыдущий квартал",2]
[null,null,"Отношение строки 1 к строке 2 (%)",3,null,"Минимально допустимая величина 5% "]
[null,null,"Максимальный объем обязательств, переданный в перестрахование за пределы Республики Узбекистан по каждому отдельному договору страхования (перестрахования)",4,null,"Максимально допустимая величина 95% "]
[]
[null,"* При перестраховании через страхового брокера указывается его наименование и доля, информация о перестраховщиках прилагается к данной таблице согласно настоящей форме."]
[null,"Таблица 2","Наименование страховщика/ перестраховщика (кому передано в перестрахование)*","Рейтинг финансовой надежности (с указанием наименования рейтингового агентства)","Страна страховщика (перестраховщика)","Объем переданных в перестрахование страховых обязательств (тыс. сум., долл. США, иное)","Объем страховых премий по договорам, переданным в перестрахование (тыс. сум., долл. США, иное)","Доля перестраховщика в общем объеме переданных в перестрахование страховых обязательств (%)"]
[null,1]
[null,{"$f":"B15+1","v":2}]
[null,{"$f":"B16+1","v":3}]
[null,4]
[null,5]
[null,6]
[null,7]
[null,8]
[null,9]
[null,10]
[null,11]
[null,12]
[null,13]
[null,14]
[null,15]
[null,16]
[null,17]
[null,18]
[null,19]
[null,20]
[null,21]
[null,22]
[null,23]
[null,24]
[null,25]
[null,26]
[null,27]
[null,28]
[null,29]
[null,30]
[null,31]
[null,32]
[null,33]
[null,34]
[null,35]
[null,36]
[null,37]
[null,38]
[null,39]
[null,40]
[null,41]
[null,42]
[null,43]
[null,44]
[null,45]
[null,46]

{"sheet":"1882_1_ru","index":29,"n_rows":34,"n_cols":4,"rows_kept":34,"cut":false,"hidden":true,"merged":[[33,1,35,3]]}
[null,"Рег. номер",{"$f":"VLOOKUP($C$5,#REF!,2,FALSE)","v":1882},"Список таблиц"]
[null,"Наим. док-та",{"$f":"VLOOKUP($C$5,#REF!,3,FALSE)","v":"Положение о страховых резервах страховщиков"}]
[null,"Номер прил-я",{"$f":"VLOOKUP($C$5,#REF!,4,FALSE)","v":1}]
[null,"Наим. прил-я",{"$f":"VLOOKUP($C$5,#REF!,5,FALSE)","v":"Расчет доходов, расходов и финансового результата для целей расчета стабилизационного резерва по обязательному страхованию гражданской ответственности владельцев транспортных средств"}]
[null,"Код прил-я","1882_1"]
[null,null,null,"Таблица 1."]
[null,"№ строки","Наименование показателя","Величина (тыс. сум.)"]
[null,"1.","Страховая брутто-премия, начисленная в отчетном периоде"]
[null,"2.","Обязательные взносы страховщика в Фонд гарантирования выплат за отчетный период"]
[null,"3.","РНП на начало отчетного периода"]
[null,"4.","РНП на конец отчетного периода (на отчетную дату) "]
[null,"5.","РЗУ на начало отчетного периода"]
[null,"6.","РЗУ на конец отчетного периода (на отчетную дату) "]
[null,"7.","РПНУ на начало отчетного периода"]
[null,"8.","РПНУ на конец отчетного периода (на отчетную дату) "]
[null,"9.","Страховые выплаты, произведенные за отчетный период"]
[null,"10.","Страховые премии (взносы), возвращенные страхователям за отчетный период в связи с досрочным прекращением (изменением условий) договоров "]
[null,"11.","Расходы на осуществление обязательного страхования гражданской ответственности владельцев транспортных средств (в том числе отчисления в резерв предупредительных мероприятий по предотвращению и предупреждению наступления страховых случаев), произведенные за отчетный период (стр. 11 = стр. 1 х 25%)"]
[null,"12.","Изменение РНП, РЗУ и РПНУ за отчетный период (стр. 12 = стр. 4 – стр. 3 + стр. 6 – стр. 5 + стр. 8 – стр. 7) "]
[null,"13.","Итого — доходы (если стр. 12 > = 0, то стр. 13 = стр. 1; если стр. 12 < 0, то стр. 13 = стр. 1 – стр. 12.) "]
[null,"14.","Итого — расходы (если стр. 12 > = 0, то стр. 14 = стр. 2 + стр. 9 + стр. 10 + стр. 11 + стр. 12; если стр. 12 < 0, то стр. 14 = стр. 2 + стр. 9 + стр. 10 + стр. 11.) "]
[null,"15.","Финансовый результат (превышение доходов над расходами или расходов над доходами) (стр. 15 = стр. 13 – стр. 14)"]
[]
[null,null,"Расчет стабилизационного резерва по обязательному страхованию гражданской ответственности владельцев транспортных средств","Таблица 2."]
[null,"№ строки","Наименование показателя","Величина (тыс. сум.)"]
[null,"1.","Доходы (согласно данным стр. 13 таблицы № 1) "]
[null,"2.","Финансовый результат (превышение доходов над расходами или расходов над доходами) (согласно данным стр. 15 таблицы № 1) "]
[null,"3.","Стабилизационный резерв по обязательному страхованию гражданской ответственности владельцев транспортных средств (СР ОСГО) на начало отчетного периода"]
[null,"4.","Увеличение / уменьшение СР ОСГО (если стр. 2 > = 0,05 х стр. 1, то стр. 4 = стр. 2 – 0,05 х стр. 1; если 0 < = стр. 2< 0,05 х стр. 1, то стр. 4 = 0; если стр. 2 < 0, то стр. 4 = стр. 2.) "]
[null,"5.","Промежуточный итог (стр. 3 + стр. 4)"]
[null,"5.1.","Сумма страховых выплат, произведенных за период 36 месяцев до отчетной даты по договорам обязательного страхования гражданской ответственности владельцев транспортных средств "]
[null,"6.","Стабилизационный резерв по обязательному страхованию гражданской ответственности владельцев транспортных средств на отчетную дату (если стр. 5 < 0, то стр. 6 = 0; если стр. 5.1 > стр. 5 >= 0, то стр. 6 = стр. 5; если стр. 5 > стр. 5.1, то стр. 6 = стр. 5.1.) "]
[]
[null,"* Заполняется только в случае, если страховщик, осуществляет деятельность по обязательному страхованию гражданской ответственности владельцев транспортных средств. Все величины, используемые для определения доходов, расходов и финансового результата, в данной таблице относятся к обязательному страхованию гражданской ответственности владельцев транспортных средств."]

{"sheet":"1882_2_ru","index":30,"n_rows":32,"n_cols":4,"rows_kept":32,"cut":false,"hidden":true,"merged":[[31,1,33,3]]}
[null,"Рег. номер",{"$f":"VLOOKUP($C$5,#REF!,2,FALSE)","v":1882},"Список таблиц"]
[null,"Наим. док-та",{"$f":"VLOOKUP($C$5,#REF!,3,FALSE)","v":"Положение о страховых резервах страховщиков"}]
[null,"Номер прил-я",{"$f":"VLOOKUP($C$5,#REF!,4,FALSE)","v":2}]
[null,"Наим. прил-я",{"$f":"VLOOKUP($C$5,#REF!,5,FALSE)","v":"Расчет доходов, расходов и финансового результата для целей расчета стабилизационного резерва по обязательному страхованию гражданской ответственности работодателя"}]
[null,"Код прил-я","1882_2"]
[null,null,null,"Таблица 1."]
[null,"№ строки","Наименование показателя","Величина (тыс. сум.)"]
[null,"1.","Страховая брутто-премия, начисленная в отчетном периоде"]
[null,"2.","РНП на начало отчетного периода"]
[null,"3.","РНП на конец отчетного периода (на отчетную дату)"]
[null,"4.","РЗУ на начало отчетного периода"]
[null,"5.","РЗУ на конец отчетного периода (на отчетную дату)"]
[null,"6.","РПНУ на начало отчетного периода"]
[null,"7.","РПНУ на конец отчетного периода (на отчетную дату)"]
[null,"8.","Страховые выплаты, произведенные за отчетный период"]
[null,"9.","Страховые премии (взносы), возвращенные страхователям за отчетный период в связи с досрочным прекращением (изменением условий) договоров"]
[null,"10.","Расходы на осуществление обязательного страхования гражданской ответственности работодателя (в том числе отчисления в резерв предупредительных мероприятий по предотвращению и предупреждению наступления страховых случаев), произведенные за отчетный период (стр. 10 = стр. 1 х 30%)"]
[null,"11.","Изменение РНП, РЗУ и РПНУ за отчетный период (стр. 11 = стр. 3 – стр. 2 + стр. 5 – стр. 4 + стр. 7 – стр. 6) "]
[null,"12.","Итого — доходы (если стр. 11 > = 0, то стр. 12 = стр. 1; если стр. 11< 0, то стр. 12 = стр. 1 – стр. 11.) "]
[null,"13.","Итого — расходы (если стр. 11 > = 0, то стр. 13 = стр. 8 + стр. 9 + стр. 10+ стр. 11; если стр. 11 < 0, то стр. 13 = стр. 8 + стр. 9 + стр. 10.)"]
[null,"14.","Финансовый результат (превышение доходов над расходами или расходов над доходами) (стр. 14 = стр. 12 – стр. 13)"]
[]
[null,null,"Расчет стабилизационного резерва по обязательному страхованию гражданской ответственности работодателя","Таблица 2."]
[null,"№ строки","Наименование показателя","Величина (тыс. сум.)"]
[null,"1.","Доходы (согласно данным стр. 12 таблицы № 1)"]
[null,"2.","Финансовый результат (превышение доходов над расходами или расходов над доходами) (согласно данным стр. 14 таблицы № 1)"]
[null,"3.","Стабилизационный резерв по обязательному страхованию гражданской ответственности работодателя (СР ОСГОР) на начало отчетного периода"]
[null,"4.","Увеличение / уменьшение СР ОСГОР (если стр. 2 > = 0,05 х стр. 1, то стр. 4 = стр. 2 – 0,05 х стр. 1; если 0 < = стр. 2 < 0,05 х стр. 1, то стр. 4 = 0; если стр. 2 < 0, то стр. 4 = стр. 2.)"]
[null,"5.","Промежуточный итог (стр. 3 + стр. 4)"]
[null,"6.","Стабилизационный резерв по обязательному страхованию гражданской ответственности работодателя на отчетную дату (если стр. 5 < 0, то стр. 6 = 0; если стр. 5 > = 0, то стр. 6 = стр. 5.)"]
[]
[null,"* Заполняется только в случае, если страховщик осуществляет деятельность по обязательному страхованию гражданской ответственности работодателя. Все величины, используемые для определения доходов, расходов и финансового результата, в данной таблице относятся к обязательному страхованию гражданской ответственности работодателя."]

{"sheet":"1882_3_ru","index":31,"n_rows":32,"n_cols":4,"rows_kept":32,"cut":false,"hidden":true,"merged":[[31,1,34,3]]}
[null,"Рег. номер",{"$f":"VLOOKUP($C$5,#REF!,2,FALSE)","v":1882},"Список таблиц"]
[null,"Наим. док-та",{"$f":"VLOOKUP($C$5,#REF!,3,FALSE)","v":"Положение о страховых резервах страховщиков"}]
[null,"Номер прил-я",{"$f":"VLOOKUP($C$5,#REF!,4,FALSE)","v":3}]
[null,"Наим. прил-я",{"$f":"VLOOKUP($C$5,#REF!,5,FALSE)","v":"Расчет доходов, расходов и финансового результата для целей расчета стабилизационного резерва по обязательному страхованию гражданской ответственности перевозчика"}]
[null,"Код прил-я","1882_3"]
[null,null,null,"Таблица 1."]
[null,"№ строки","Наименование показателя","Величина (тыс. сум)"]
[null,"1.","Страховая брутто-премия, начисленная в отчетном периоде"]
[null,"2.","РНП на начало отчетного периода"]
[null,"3.","РНП на конец отчетного периода (на отчетную дату)"]
[null,"4.","РЗУ на начало отчетного периода"]
[null,"5.","РЗУ на конец отчетного периода (на отчетную дату)"]
[null,"6.","РПНУ на начало отчетного периода"]
[null,"7.","РПНУ на конец отчетного периода (на отчетную дату)"]
[null,"8.","Страховые выплаты, произведенные за отчетный период"]
[null,"9.","Страховые премии (взносы), возвращенные страхователям за отчетный период в связи с досрочным прекращением (изменением условий) договоров"]
[null,"10.","Расходы на осуществление обязательного страхования гражданской ответственности перевозчика (в том числе отчисления в резерв предупредительных мероприятий по предотвращению и предупреждению наступления страховых случаев), произведенные за отчетный период (стр. 10 = стр. 1 х 30%)"]
[null,"11.","Изменение РНП, РЗУ и РПНУ за отчетный период (стр. 11 = стр. 3 — стр. 2 + стр. 5 — стр. 4 + стр. 7 — стр. 6)"]
[null,"12.","Итого — доходы (если стр. 11 > = 0, то стр. 12 = стр. 1; если стр. 11 < 0, то стр. 12 = стр. 1 — стр. 11)"]
[null,"13.","Итого — расходы (если стр. 11 >= 0, то стр. 13 = стр. 8 + стр. 9 + стр. 10+стр. 11; если стр. 11 < 0, то стр. 13 = стр. 8 + стр. 9 + стр. 10)"]
[null,"14.","Финансовый результат (превышение доходов над расходами или расходов над доходами) (стр. 14 = стр. 12 — стр. 13)"]
[]
[null,null,"Расчет стабилизационного резерва по обязательному страхованию гражданской ответственности перевозчика","Таблица 2."]
[null,"Сатр Т/р","Наименование показателя","Величина (тыс. сум)"]
[null,"1.","Доходы (согласно данным стр. 12 таблицы № 1)"]
[null,"2.","Финансовый результат (превышение доходов над расходами или расходов над доходами) (согласно данным стр. 14 таблицы № 1)"]
[null,"3.","Стабилизационный резерв по обязательному страхованию гражданской ответственности перевозчика (СР ОСГОП) на начало отчетного периода"]
[null,"4.","Увеличение / уменьшение СР ОСГОП (если стр. 2 > = 0,05 х стр. 1, то стр. 4 = стр. 2 — 0,05 х стр. 1; если 0 < = стр. 2 < 0,05 х стр. 1, то стр. 4 = 0; если стр. 2 < 0, то стр. 4 = стр. 2)"]
[null,"5.","Промежуточный итог (стр. 3 + стр. 4)"]
[null,"6.","Стабилизационный резерв по обязательному страхованию гражданской ответственности перевозчика на отчетную дату (если стр. 5 < 0, то стр. 6 = 0; если стр. 5 >= 0, то стр. 6 = стр. 5)"]
[]
[null,"* Заполняется только в случае, если страховщик осуществляет деятельность по обязательному страхованию гражданской ответственности перевозчика. Все величины, используемые для определения доходов, расходов и финансового результата, в данной таблице относятся к обязательному страхованию гражданской ответственности перевозчика."]

{"sheet":"1882_4_ru","index":32,"n_rows":47,"n_cols":8,"rows_kept":47,"cut":false,"hidden":true,"merged":[[12,1,12,2],[0,2,0,3],[1,2,1,3],[2,2,2,3],[3,2,3,3],[4,2,4,3],[6,1,7,2],[6,3,7,3],[6,4,6,7],[8,1,8,2],[9,1,9,2],[10,1,10,2],[11,1,11,2],[24,1,24,2],[13,1,13,2],[14,1,14,2],[15,1,15,2],[16,1,16,2],[17,1,17,2],[18,1,18,2],[19,1,19,2],[20,1,20,2],[21,1,21,2],[22,1,22,2],[23,1,23,2],[36,1,36,2],[25,1,25,2],[26,1,26,2],[27,1,27,2],[28,1,28,2],[29,1,29,2],[30,1,30,2],[31,1,31,2],[32,1,32,2],[33,1,33,2],[34,1,34,2],[35,1,35,2],[43,1,43,2],[44,1,44,2],[45,1,45,2],[46,1,46,2],[37,1,37,2],[38,1,38,2],[39,1,39,2],[40,1,40,2],[41,1,41,2],[42,1,42,2]]}
[null,"Рег. номер",{"$f":"VLOOKUP($C$5,#REF!,2,FALSE)","v":1882},null,"Список таблиц"]
[null,"Наим. док-та",{"$f":"VLOOKUP($C$5,#REF!,3,FALSE)","v":"Положение о страховых резервах страховщиков"}]
[null,"Номер прил-я",{"$f":"VLOOKUP($C$5,#REF!,4,FALSE)","v":4}]
[null,"Наим. прил-я",{"$f":"VLOOKUP($C$5,#REF!,5,FALSE)","v":"Общая величина страховых резервов "}]
[null,"Код прил-я","1882_4"]
[]
[null,"Резервы",null,"Всего, (тыс. сум)","Из них в иностранной валюте"]
[null,null,null,null,"доллары США","евро","другая","Всего, (тыс. сум экв.)"]
[null,"Резерв незаработанной премии (итого)"]
[null,"1-я учетная группа, в том числе:"]
[null,"РНП по ОСГО"]
[null,"РНП по ОСГОР"]
[null,"РНП по ОСГОП"]
[null,"2-я учетная группа"]
[null,"3-я учетная группа"]
[null,"4-я учетная группа"]
[null,"Доля перестраховщиков в РНП"]
[null,"Резерв заявленных, но не урегулированных убытков (итого), в том числе:"]
[null,"РЗУ по ОСГО "]
[null,"РЗУ по ОСГОР"]
[null,"РЗУ по ОСГОП"]
[null,"Доля перестраховщиков в РЗУ"]
[null,"Резерв произошедших, но не заявленных убытков (итого), в том числе:"]
[null,"РПНУ по ОСГО"]
[null,"РПНУ по ОСГОР"]
[null,"РПНУ по ОСГОП"]
[null,"Доля перестраховщиков в РПНУ"]
[null,"Стабилизационный резерв по обязательному страхованию гражданской ответственности владельцев транспортных средств (СР ОСГО)"]
[null,"Стабилизационный резерв по обязательному страхованию гражданской ответственности работодателя (СР ОСГОР)"]
[null,"Стабилизационный резерв по обязательному страхованию гражданской ответственности перевозчика (СР ОСГОП)"]
[null,"Резерв премий (итого)"]
[null,"в том числе, резерв по накопительным видам страхования жизни"]
[null,"Доля перестраховщиков в РНЖ"]
[null,"Резерв по другим видам (кроме накопительных видов) страхования жизни"]
[null,"Доля перестраховщиков в РЖ"]
[null,"Доля перестраховщиков в резерве премий"]
[null,"Общая величина технических резервов"]
[null,"Общая доля перестраховщиков в технических резервах"]
[null,"Резерв предупредительных мероприятий (итого), в том числе:"]
[null,"РПМ ОСГО"]
[null,"РПМ ОСГОР"]
[null,"РПМ ОСГОП"]
[null,"РПМ по другим видам страхования"]
[null,"Прочие страховые резервы"]
[null,"…"]
[null,"Общая величина страховых резервов"]
[null,"Общая доля перестраховщиков в страховых резервах"]

{"sheet":"1882_5_ru","index":33,"n_rows":45,"n_cols":8,"rows_kept":45,"cut":false,"hidden":true,"merged":[[12,1,12,2],[0,2,0,3],[1,2,1,3],[2,2,2,3],[3,2,3,3],[4,2,4,3],[6,1,7,2],[6,3,6,4],[6,5,6,7],[8,1,8,2],[9,1,9,2],[10,1,10,2],[11,1,11,2],[24,1,24,2],[13,1,13,2],[14,1,14,2],[15,1,15,2],[16,1,16,2],[17,1,17,2],[18,1,18,2],[19,1,19,2],[20,1,20,2],[21,1,21,2],[22,1,22,2],[23,1,23,2],[36,1,36,2],[25,1,25,2],[26,1,26,2],[27,1,27,2],[28,1,28,2],[29,1,29,2],[30,1,30,2],[31,1,31,2],[32,1,32,2],[33,1,33,2],[34,1,34,2],[35,1,35,2],[43,1,43,2],[44,1,44,2],[37,1,37,2],[38,1,38,2],[39,1,39,2],[40,1,40,2],[41,1,41,2],[42,1,42,2]]}
[null,"Рег. номер",{"$f":"VLOOKUP($C$5,#REF!,2,FALSE)","v":1882},null,"Список таблиц"]
[null,"Наим. док-та",{"$f":"VLOOKUP($C$5,#REF!,3,FALSE)","v":"Положение о страховых резервах страховщиков"}]
[null,"Номер прил-я",{"$f":"VLOOKUP($C$5,#REF!,4,FALSE)","v":5}]
[null,"Наим. прил-я",{"$f":"VLOOKUP($C$5,#REF!,5,FALSE)","v":"Сведения о сотаве активов"}]
[null,"Код прил-я","1882_5"]
[]
[null,"Активы",null,"Всего активов",null,"Из них выделенные активы"]
[null,null,null,"в пределах Республики Узбекистан","за пределами Республики Узбекистан","в пределах Республики Узбекистан","за пределами Республики Узбекистан","Всего (тыс. сум. экв.)"]
[null,"Основные средства "]
[null,"Из них, недвижимость"]
[null,"Нематериальные активы "]
[null,"Инвестиции, всего "]
[null,"Депозиты в коммерческих банках (банковские вклады) "]
[null,"Депозиты в кредитных организациях (кроме коммерческих банков)"]
[null,"Займы работникам (кроме работников, которые являются связанными лицами) "]
[null,"Займы учредителям и акционерам страховщика, которые не являются связанными лицами"]
[null,"Займы связанным лицам "]
[null,"Прочие займы "]
[null,"Вклады в дочерние предприятия "]
[null,"Вклады в связанные лица "]
[null,"Государственные ценные бумаги "]
[null,"Акции "]
[null,"Облигации "]
[null,"Прочие ценные бумаги "]
[null,"Прочие инвестиции "]
[null,"Денежные средства, всего "]
[null,"Денежные средства на расчетном счете "]
[null,"Денежные средства в кассе "]
[null,"Денежные средства в иностранной валюте "]
[null,"Прочие денежные средства и эквиваленты"]
[null,"Прочие оборотные активы, всего "]
[null,"Производственные запасы (материалы)"]
[null,"Незавершенное производство (услуги)"]
[null,"Выкупленные собственные акции "]
[null,"Дебиторская задолженность, всего "]
[null,"Расчеты со страхователями "]
[null,"Расчеты с перестраховщиками "]
[null,"Авансовые платежи "]
[null,"Расчеты с учредителями "]
[null,"Расчеты с бюджетом "]
[null,"Прочие "]
[null,"Прочие активы, всего "]
[null,"Прочие активы (укажите) "]
[null,"… "]
[null,"Всего активов"]

{"sheet":"1945_1_ru","index":34,"n_rows":146,"n_cols":7,"rows_kept":146,"cut":false,"hidden":true,"merged":[[7,1,7,3],[8,1,8,3],[9,1,9,3],[10,1,10,3],[11,1,11,3],[12,1,12,3],[0,2,0,4],[1,2,1,4],[2,2,2,4],[3,2,3,4],[4,2,4,4],[6,1,6,3],[19,1,19,3],[20,1,20,3],[21,1,21,3],[22,1,22,3],[23,1,23,3],[24,1,24,3],[13,1,13,3],[14,1,14,3],[15,1,15,3],[16,1,16,3],[17,1,17,3],[18,1,18,3],[31,1,31,3],[32,1,32,3],[33,1,33,3],[34,1,34,3],[35,1,35,3],[36,1,36,3],[25,1,25,3],[26,1,26,3],[27,1,27,3],[28,1,28,3],[29,1,29,3],[30,1,30,3],[43,1,43,3],[44,1,44,3],[45,1,45,3],[46,1,46,3],[47,1,47,3],[48,1,48,3],[37,1,37,3],[38,1,38,3],[39,1,39,3],[40,1,40,3],[41,1,41,3],[42,1,42,3],[55,1,55,3],[56,1,56,3],[57,1,57,3],[58,1,58,3],[59,1,59,3],[60,1,60,3],[49,1,49,3],[50,1,50,3],[51,1,51,3],[52,1,52,3],[53,1,53,3],[54,1,54,3],[67,1,67,3],[68,1,68,3],[69,1,69,3],[70,1,70,3],[71,1,71,3],[72,1,72,3],[61,1,61,3],[62,1,62,3],[63,1,63,3],[64,1,64,3],[65,1,65,3],[66,1,66,3],[79,1,79,3],[80,1,80,3],[81,1,81,3],[82,1,82,3],[83,1,83,3],[84,1,84,3],[73,1,73,3],[74,1,74,3],[75,1,75,3],[76,1,76,3],[77,1,77,3],[78,1,78,3],[91,1,91,3],[92,1,92,3],[93,1,93,3],[94,1,94,3],[95,1,95,3],[96,1,96,3],[85,1,85,3],[86,1,86,3],[87,1,87,3],[88,1,88,3],[89,1,89,3],[90,1,90,3],[103,1,103,3],[104,1,104,3],[105,1,105,3],[106,1,106,3],[107,1,107,3],[108,1,108,3],[97,1,97,3],[98,1,98,3],[99,1,99,3],[100,1,100,3],[101,1,101,3],[102,1,102,3],[115,1,115,3],[116,1,116,3],[117,1,117,3],[118,1,118,3],[119,1,119,3],[120,1,120,3],[109,1,109,3],[110,1,110,3],[111,1,111,3],[112,1,112,3],[113,1,113,3],[114,1,114,3],[127,1,127,3],[128,1,128,3],[129,1,129,3],[130,1,130,3],[131,1,131,3],[132,1,132,3],[121,1,121,3],[122,1,122,3],[123,1,123,3],[124,1,124,3],[125,1,125,3],[126,1,126,3],[139,1,139,3],[140,1,140,3],[141,1,141,3],[142,1,142,3],[143,1,143,3],[145,1,147,6],[133,1,133,3],[134,1,134,3],[135,1,135,3],[136,1,136,3],[137,1,137,3],[138,1,138,3]]}
[null,"Рег. номер",{"$f":"VLOOKUP($C$5,#REF!,2,FALSE)","v":1945},null,null,"Список таблиц"]
[null,"Наим. док-та",{"$f":"VLOOKUP($C$5,#REF!,3,FALSE)","v":"Формы финансовой отчетности страховщиков и правила по их заполнению"}]
[null,"Номер прил-я",{"$f":"VLOOKUP($C$5,#REF!,4,FALSE)","v":1}]
[null,"Наим. прил-я",{"$f":"VLOOKUP($C$5,#REF!,5,FALSE)","v":"Бухгалтерский баланс — форма № 1 — страхование"}]
[null,"Код прил-я","1945_1"]
[]
[null,"Наименование показателей",null,null,"Код стр.","На начало отчетного периода","На конец отчетного периода"]
[null,"Актив"]
[null,"I. Долгосрочные активы"]
[null,"Основные средства:"]
[null,"Первоначальная (восстановительная) стоимость (0100, 0300)",null,null,10]
[null,"Сумма износа (0200)",null,null,11]
[null,"Остаточная (балансовая) стоимость (стр. 010 – 011)",null,null,12]
[null,"Нематериальные активы:"]
[null,"Первоначальная стоимость (0400)",null,null,20]
[null,"Сумма амортизации (0500)",null,null,21]
[null,"Остаточная (балансовая) стоимость (стр. 020 – 021)",null,null,22]
[null,"Долгосрочные инвестиции, всего (стр.040+050+060+070+080), в том числе:",null,null,30]
[null,"Ценные бумаги (0610)",null,null,40]
[null,"Инвестиции в дочерние хозяйственные общества (0620)",null,null,50]
[null,"Инвестиции в зависимые хозяйственные общества (0630)",null,null,60]
[null,"Инвестиции в предприятия с иностранным капиталом (0640)",null,null,70]
[null,"Прочие долгосрочные инвестиции (0690)",null,null,80]
[null,"Оборудование к установке (0700)",null,null,90]
[null,"Капитальные вложения (0800)",null,null,100]
[null,"Долгосрочная дебиторская задолженность (0910, 0920, 0930, 0940)",null,null,110]
[null,"Долгосрочные отсроченные расходы (0950, 0960, 0990)",null,null,120]
[null,"Итого по разделу I (стр. 012+022+030+090+100+110+120)",null,null,130]
[null,"II. Текущие активы"]
[null,"Товарно - материальные запасы, всего (стр.150+160), в том числе:",null,null,140]
[null,"Материалы (1000, 1500, 1600)",null,null,150]
[null,"Незавершенные услуги (2000, 2300, 2700)",null,null,160]
[null,"Расходы будущих периодов (3100)",null,null,170]
[null,"Отсроченные расходы (3200)",null,null,180]
[null,"Дебиторы, всего (стр. 200 + 310 + 320 + 330 + 340 + 350 + 360 + 370 + 380 + 390)",null,null,190]
[null,"из нее: просроченная*",null,null,191]
[null,"Счета к оплате, всего (стр. 210 + 220 – 400)",null,null,200]
[null,"Задолженность покупателей и заказчиков (4010, 4020)",null,null,210]
[null,"Дебиторы по страховым операциям, всего (стр. 230 + 240 + 250 + 260 + 270 + 280 + 290 + 300)",null,null,220]
[null,"Задолженность страхователей (4030)",null,null,230]
[null,"Задолженность страховых агентов и брокеров (4040)",null,null,240]
[null,"Задолженность перестрахователей (4050)",null,null,250]
[null,"Задолженность перестраховщиков по комиссионным вознаграждениям, тантьемам и другим вознаграждениям (4051)",null,null,260]
[null,"Задолженность перестраховщиков (4060)",null,null,270]
[null,"Ссуды по страхованию жизни (4070)",null,null,280]
[null,"Депо убытков страховщика у других страховщиков (4080)",null,null,290]
[null,"Депо премий страховщика у других страховщиков (4090)",null,null,300]
[null,"Задолженность обособленных подразделений (4110)",null,null,310]
[null,"Задолженность дочерних и зависимых хозяйственных обществ (4120)",null,null,320]
[null,"Авансы, выданные персоналу (4200)",null,null,330]
[null,"Авансы, выданные поставщикам и подрядчикам (4300)",null,null,340]
[null,"Авансовые платежи в бюджет (4400)",null,null,350]
[null,"Авансовые платежи в государственные целевые фонды и по страхованию (4500)",null,null,360]
[null,"Задолженность учредителей по вкладам в уставный капитал (4600)",null,null,370]
[null,"Задолженность персонала по прочим операциям (4700)",null,null,380]
[null,"Прочие дебиторские задолженности (4800)",null,null,390]
[null,"Резервы по сомнительным долгам (4900)",null,null,400]
[null,"Денежные средства, всего (стр. 420 + 430 + 440 + 450), в том числе:",null,null,410]
[null,"Денежные средства в кассе (5000)",null,null,420]
[null,"Денежные средства на расчетном счете (5100)",null,null,430]
[null,"Денежные средства в иностранной валюте (5200)",null,null,440]
[null,"Прочие денежные средства и эквиваленты (5500, 5600, 5700)",null,null,450]
[null,"Краткосрочные инвестиции (5800)",null,null,460]
[null,"Прочие текущие активы (5900)",null,null,470]
[null,"Итого по разделу II (стр. 140 + 170 + 180 + 190 + 410 + 460 + 470)",null,null,480]
[null,"Всего по активу баланса (стр.130 + 480)",null,null,490]
[null,"Пассив"]
[null,"I. Источники собственных средств "]
[null,"Уставный капитал (8300) ",null,null,500]
[null,"Добавленный капитал (8400) ",null,null,510]
[null,"Резервный капитал (8500) ",null,null,520]
[null,"Выкупленные собственные акции (8600) ",null,null,530]
[null,"Нераспределенная прибыль (непокрытый убыток) (8700) ",null,null,540]
[null,"Целевые поступления (8800) ",null,null,550]
[null,"Резервы предстоящих расходов и платежей (8900) ",null,null,560]
[null,"Итого по разделу I (стр. 500 + 510 + 520 – 530 + 540 + 550 + 560) ",null,null,570]
[null,"II. Страховые резервы "]
[null,"Страховые резервы, всего (стр. 590 + 600 + 610 + 620 + 630 + 640 + 650 + 660) ",null,null,580]
[null,"Резерв незаработанной премии (8010) ",null,null,590]
[null,"Резерв произошедших, но не заявленных убытков (8020) ",null,null,600]
[null,"Резерв заявленных, но неурегулированных убытков (8030) ",null,null,610]
[null,"Резерв предупредительных мероприятий (8040) ",null,null,620]
[null,"Резерв несоответствия активов (8050) ",null,null,630]
[null,"Резерв катастроф (8060) ",null,null,640]
[null,"Резерв колебания убыточности (8070) ",null,null,650]
[null,"Резервы по страхованию жизни (8090) ",null,null,660]
[null,"Доля перестраховщиков в страховых резервах, всего (стр. 680 + 690 + 700 + 710) ",null,null,670]
[null,"Доля перестраховщиков в резерве незаработанной премии (8110) ",null,null,680]
[null,"Доля перестраховщиков в резерве заявленных, но неурегулированных убытков (8120) ",null,null,690]
[null,"Доля перестраховщиков в резерве произошедших, но не заявленных убытков (8130) ",null,null,700]
[null,"Доля перестраховщиков в резервах по страхованию жизни (8140) ",null,null,710]
[null,"Итого по разделу II (стр.580 – 670) ",null,null,720]
[null,"III. Обязательства"]
[null,"Долгосрочные обязательства, всего (стр. 740 + 750 + 850 + 860 + 870 + 880 + 890 + 900 + 910 + 920) ",null,null,730]
[null,"в том числе: долгосрочная кредиторская задолженность (стр. 740 + 760 + 770 + 780 + 790 + 800 + 820 + 830 + 850 + 870 + 890 + 920) ",null,null,731]
[null,"Долгосрочная задолженость поставщикам и подрядчикам (7010, 7020) ",null,null,740]
[null,"Долгосрочные обязательства по страховым операциям, всего (стр. 760 + 770 + 780 + 790 + 800 + 810 + 820 + 830) ",null,null,750]
[null,"Долгосрочная задолженность подрядчикам, осуществляющим предупредительные мероприятия (7011) ",null,null,760]
[null,"Долгосрочная задолженность страхователям (7030) ",null,null,770]
[null,"Долгосрочная задолженность страховым агентам и брокерам (7040) ",null,null,780]
[null,"Долгосрочная задолженность перестрахователям (7050) ",null,null,790]
[null,"Долгосрочная задолженность перестраховщикам (7060) ",null,null,800]
[null,"Депо премии перестраховщиков (7070) ",null,null,810]
[null,"Долгосрочная задолженность перестрахователям по комиссионным вознаграждениям, тантьемам и другим вознаграждениям (7080) ",null,null,820]
[null,"Долгосрочная задолженность актуариям, аджастерам, сюрвейерам и ассистансам (7090) ",null,null,830]
[null,"Долгосрочная задолженность обособленным подразделениям (7110) ",null,null,840]
[null,"Долгосрочная задолженность дочерним и зависимым хозяйственным обществам (7120) ",null,null,850]
[null,"Долгосрочные отсроченные доходы (7210, 7220, 7230) ",null,null,860]
[null,"Долгосрочные отсроченные обязательства по налогам и другим обязательным платежам (7240) ",null,null,870]
[null,"Прочие долгосрочные отсроченные обязательства (7250, 7290) ",null,null,880]
[null,"Авансы, полученные от покупателей и заказчиков (7300) ",null,null,890]
[null,"Долгосрочные банковские кредиты (7810) ",null,null,900]
[null,"Долгосрочные займы (7820, 7830, 7840) ",null,null,910]
[null,"Прочие долгосрочные кредиторские задолженности (7900) ",null,null,920]
[null,"Текущие обязательства, всего (стр. 940 + 950 + 1050 + 1060 + 1070 + 1080 + 1090 + 1100 + 1110 + 1120 + + 1130 + 1140 + 1150 + 1160 + 1170 + 1180) ",null,null,930]
[null,"в том числе: текущая кредиторская задолженность (стр. 940 + 960 + 970 + 980 + 990 + 1000 + 1020 + 1030 + 1050 + 1070 + 1090 + 1100 + 1110 + 1120 + 1130 + 1140 + 1180) ",null,null,931]
[null,"из нее: просроченная текущая кредиторская задолженность*",null,null,932]
[null,"Задолженность поставщикам и подрядчикам (6010, 6020) ",null,null,940]
[null,"Обязательства по страховым операциям, всего (стр. 960 + 970 + 980 + 990 + 1000 + 1010 + 1020 + 1030) ",null,null,950]
[null,"Задолженность подрядчикам, осуществляющим предупредительные мероприятия (6011) ",null,null,960]
[null,"Задолженность страхователям (6030) ",null,null,970]
[null,"Задолженность страховым агентам и брокерам (6040) ",null,null,980]
[null,"Задолженность перестрахователям (6050) ",null,null,990]
[null,"Задолженность перестраховщикам (6060) ",null,null,1000]
[null,"Депо премии перестраховщиков (6070) ",null,null,1010]
[null,"Задолженность перестрахователям по комиссионным вознаграждениям, тантьемам и другим вознаграждениям (6080) ",null,null,1020]
[null,"Задолженность актуариям, аджастерам, сюрвейерам и ассистансам (6090) ",null,null,1030]
[null,"Задолженность обособленным подразделениям (6110) ",null,null,1040]
[null,"Задолженность дочерним и зависимым хозяйственным обществам (6120) ",null,null,1050]
[null,"Отсроченные доходы (6210, 6220, 6230) ",null,null,1060]
[null,"Отсроченные обязательства по налогам и другим обязательным платежам (6240) ",null,null,1070]
[null,"Прочие отсроченные обязательства (6250, 6290) ",null,null,1080]
[null,"Полученные авансы (6300) ",null,null,1090]
[null,"Задолженность по платежам в бюджет (6400) ",null,null,1100]
[null,"Задолженность по страхованию (6510) ",null,null,1110]
[null,"Задолженность по платежам в государственные целевые фонды (6520) ",null,null,1120]
[null,"Задолженность учредителям (6600) ",null,null,1130]
[null,"Задолженность по оплате труда (6700) ",null,null,1140]
[null,"Краткосрочные банковские кредиты (6810) ",null,null,1150]
[null,"Краткосрочные займы (6820, 6830, 6840) ",null,null,1160]
[null,"Текущая часть долгосрочных обязательств (6950) ",null,null,1170]
[null,"Прочие кредиторские задолженности (6900 кроме 6950) ",null,null,1180]
[null,"Итого по разделу III (стр.730 + 930) ",null,null,1190]
[null,"Всего по пассиву баланса (стр. 570 + 720 + 1190) ",null,null,1200]
[]
[null,"* При наличии просроченной дебиторской и кредиторской задолженности их расшифровка приводится согласно приложению к Бухгалтерскому балансу — форма № 1 — страхование."]

{"sheet":"1945_2_ru","index":35,"n_rows":23,"n_cols":7,"rows_kept":23,"cut":false,"hidden":true,"merged":[[12,1,12,3],[0,2,0,4],[1,2,1,4],[2,2,2,4],[3,2,3,4],[4,2,4,4],[6,1,6,3],[7,1,7,3],[8,1,8,3],[9,1,9,3],[10,1,10,3],[11,1,11,3],[19,1,19,3],[20,1,20,3],[22,1,24,6],[13,1,13,3],[14,1,14,3],[15,1,15,3],[16,1,16,3],[17,1,17,3],[18,1,18,3]]}
[null,"Рег. номер",{"$f":"VLOOKUP($C$5,#REF!,2,FALSE)","v":1945},null,null,"Список таблиц"]
[null,"Наим. док-та",{"$f":"VLOOKUP($C$5,#REF!,3,FALSE)","v":"Формы финансовой отчетности страховщиков и правила по их заполнению"}]
[null,"Номер прил-я",{"$f":"VLOOKUP($C$5,#REF!,4,FALSE)","v":2}]
[null,"Наим. прил-я",{"$f":"VLOOKUP($C$5,#REF!,5,FALSE)","v":"Справка о наличии ценностей, учитываемых на забалансовых счетах"}]
[null,"Код прил-я","1945_2"]
[]
[null,"Наименование показателей ",null,null,"Код стр.","На начало отчетного периода ","На конец отчетного периода"]
[null,"Основные средства, полученные по краткосрочной аренде (001) ",null,null,1210]
[null,"Товарно-материальные ценности, принятые на ответственное хранение (002) ",null,null,1220]
[null,"Материалы, принятые в переработку (003) ",null,null,1230]
[null,"Товары, принятые на комиссию (004) ",null,null,1240]
[null,"Оборудование, принятое для монтажа (005) ",null,null,1250]
[null,"Бланки строгой отчетности (006) ",null,null,1260]
[null,"Списанная в убыток задолженность неплатежеспособных дебиторов (007) ",null,null,1270]
[null,"Обеспечение обязательств и платежей — полученные (008) ",null,null,1280]
[null,"Обеспечение обязательств и платежей — выданные (009) ",null,null,1290]
[null,"Основные средства, сданные по договору долгосрочной аренды (010) ",null,null,1300]
[null,"Имущество, полученное по договору ссуды (011) ",null,null,1310]
[null,"Расходы, исключаемые из налогооблагаемой базы следующих периодов (012) ",null,null,1320]
[null,"Временные налоговые льготы (по видам) (013) ",null,null,1330]
[null,"Инвентарь и хозяйственные принадлежности в эксплуатации (014) ",null,null,1340]
[]
[null,"* При наличии просроченной дебиторской и кредиторской задолженности их расшифровка приводится согласно приложению к Бухгалтерскому балансу — форма № 1 — страхование."]

{"sheet":"1945_3_ru","index":36,"n_rows":49,"n_cols":9,"rows_kept":49,"cut":false,"hidden":true,"merged":[[0,2,0,4],[1,2,1,4],[2,2,2,4],[3,2,3,4],[4,2,4,4],[17,1,17,3],[6,5,6,6],[6,7,6,8],[8,1,8,3],[9,1,9,3],[10,1,10,3],[11,1,11,3],[6,1,7,3],[6,4,7,4],[12,1,12,3],[13,1,13,3],[14,1,14,3],[15,1,15,3],[16,1,16,3],[29,1,29,3],[18,1,18,3],[19,1,19,3],[20,1,20,3],[21,1,21,3],[22,1,22,3],[23,1,23,3],[24,1,24,3],[25,1,25,3],[26,1,26,3],[27,1,27,3],[28,1,28,3],[41,1,41,3],[30,1,30,3],[31,1,31,3],[32,1,32,3],[33,1,33,3],[34,1,34,3],[35,1,35,3],[36,1,36,3],[37,1,37,3],[38,1,38,3],[39,1,39,3],[40,1,40,3],[48,1,48,3],[42,1,42,3],[43,1,43,3],[44,1,44,3],[45,1,45,3],[46,1,46,3],[47,1,47,3]]}
[null,"Рег. номер",{"$f":"VLOOKUP($C$5,#REF!,2,FALSE)","v":1945},null,null,"Список таблиц"]
[null,"Наим. док-та",{"$f":"VLOOKUP($C$5,#REF!,3,FALSE)","v":"Формы финансовой отчетности страховщиков и правила по их заполнению"}]
[null,"Номер прил-я",{"$f":"VLOOKUP($C$5,#REF!,4,FALSE)","v":3}]
[null,"Наим. прил-я",{"$f":"VLOOKUP($C$5,#REF!,5,FALSE)","v":"Отчет о финансовых результатах — форма № 2 — страхование"}]
[null,"Код прил-я","1945_3"]
[]
[null,"Наименование показателей",null,null,"Код строки","За соответствующий период прошлого года",null,"За отчетный период"]
[null,null,null,null,null,"Доходы (прибыль) ","Расходы (убытки) ","Доходы (прибыль) ","Расходы (убытки) "]
[null,"Доходы от оказания страховых услуг, (стр. 011 – 012 + 013 + / – 014 + / – 015 + / – 016 + / – 017 + / – 018 + 019), в том числе:",null,null,10]
[null,"Страховые премии по прямому страхованию и сострахованию (в части доли страховщика, установленной в договоре сострахования) ",null,null,11]
[null,"Страховые премии по договорам, переданным в перестрахование ",null,null,12]
[null,"Страховые премии по договорам, принятым в перестрахование ",null,null,13]
[null,"Результат изменения резерва незаработанной премии, скорректированный на долю перестраховщиков в резерве незаработанной премии ",null,null,14]
[null,"Результат изменения резерва заявленных, но не урегулированных убытков, скорректированный на долю перестраховщиков в резерве заявленных, но не урегулированных убытков ",null,null,15]
[null,"Результат изменения резерва произошедших, но не заявленных убытков, скорректированный на долю перестраховщиков в резерве произошедших, но не заявленных убытков ",null,null,16]
[null,"Результат изменения резервов по страхованию жизни, скорректированный на долю перестраховщиков в резервах по страхованию жизни ",null,null,17]
[null,"Результат изменения других технических резервов, скорректированный на долю перестраховщиков в соответствующих резервах ",null,null,18]
[null,"Другие доходы от оказания страховых услуг ",null,null,19]
[null,"Доходы от оказания услуг посредника ",null,null,20]
[null,"Доходы по возмещениям доли убытков по перестрахованию ",null,null,30]
[null,"Доходы по комиссионным вознаграждениям, тантьемам и сборам по перестрахованию ",null,null,40]
[null,"Доходы от оказания услуг сюрвейера и аджастера ",null,null,50]
[null,"Чистая выручка от оказания страховых услуг (стр. 010 + 020 + 030 + 040 + 050) ",null,null,60]
[null,"Себестоимость оказанных страховых услуг ",null,null,70]
[null,"Валовая прибыль (убыток) от оказания страховых услуг (стр.060 – 070) ",null,null,80]
[null,"Расходы периода, всего (стр.100 + 110 + 120 + 130), в том числе: ",null,null,90]
[null,"Расходы по реализации ",null,null,100]
[null,"Административные расходы ",null,null,110]
[null,"Прочие операционные расходы ",null,null,120]
[null,"Расходы отчетного периода, исключаемые из налогооблагаемой базы в будущем ",null,null,130]
[null,"Прочие доходы от основной деятельности ",null,null,140]
[null,"Прибыль (убыток) от основной деятельности (стр. 080 – 090 + 140) ",null,null,150]
[null,"Доходы от финансовой деятельности, всего (стр.170 + 180 + 190 + 200 + 210), в том числе: ",null,null,160]
[null,"Доходы в виде дивидендов ",null,null,170]
[null,"Доходы в виде процентов ",null,null,180]
[null,"Доходы от долгосрочной аренды (лизинга) ",null,null,190]
[null,"Доходы от валютных курсовых разниц ",null,null,200]
[null,"Прочие доходы от финансовой деятельности ",null,null,210]
[null,"Расходы по финансовой деятельности, всего (стр.230 + 240 + 250 + 260), в том числе: ",null,null,220]
[null,"Расходы в виде процентов ",null,null,230]
[null,"Расходы в виде процентов по долгосрочной аренде (лизингу) ",null,null,240]
[null,"Убытки от валютных курсовых разниц ",null,null,250]
[null,"Прочие расходы по финансовой деятельности ",null,null,260]
[null,"Прибыль (убыток) от общехозяйственной деятельности (стр. 150 + 160 – 220) ",null,null,270]
[null,"Чрезвычайные прибыли и убытки ",null,null,280]
[null,"Прибыль (убыток) до уплаты налога на прибыль (стр.270 + / – 280) ",null,null,290]
[null,"Налог на прибыль ",null,null,300]
[null,"Прочие налоги и другие обязательные платежи от прибыли ",null,null,310]
[null,"Чистая прибыль (убыток) отчетного периода (стр.290 – 300 – 310) ",null,null,320]

{"sheet":"1945_4_ru","index":37,"n_rows":26,"n_cols":7,"rows_kept":26,"cut":false,"hidden":true,"merged":[[6,1,6,3],[0,2,0,4],[1,2,1,4],[2,2,2,4],[3,2,3,4],[4,2,4,4],[18,1,18,3],[7,1,7,3],[8,1,8,3],[9,1,9,3],[10,1,10,3],[11,1,11,3],[12,1,12,3],[13,1,13,3],[14,1,14,3],[15,1,15,3],[16,1,16,3],[17,1,17,3],[25,1,25,3],[19,1,19,3],[20,1,20,3],[21,1,21,3],[22,1,22,3],[23,1,23,3],[24,1,24,3]]}
[null,"Рег. номер",{"$f":"VLOOKUP($C$5,#REF!,2,FALSE)","v":1945},null,null,"Список таблиц"]
[null,"Наим. док-та",{"$f":"VLOOKUP($C$5,#REF!,3,FALSE)","v":"Формы финансовой отчетности страховщиков и правила по их заполнению"}]
[null,"Номер прил-я",{"$f":"VLOOKUP($C$5,#REF!,4,FALSE)","v":4}]
[null,"Наим. прил-я",{"$f":"VLOOKUP($C$5,#REF!,5,FALSE)","v":"Справка о платежах в бюджет"}]
[null,"Код прил-я","1945_4"]
[]
[null,"Наименование показателей",null,null,"Код строки ","Причитается по расчёту за отчетный период ","Фактически внесено из причитающихся по расчёту за отчетный период "]
[null,"Налог на прибыль юридических лиц ",null,null,330]
[null,"Налог на доходы физических лиц ",null,null,340]
[null,"в том числе: отчисления на индивидуальные накопительные пенсионные счета граждан ",null,null,341]
[null,"Налог на добавленную стоимость ",null,null,360]
[null,"Акцизный налог ",null,null,370]
[null,"Налог за пользование недрами ",null,null,380]
[null,"Налог за пользование водными ресурсами ",null,null,390]
[null,"Налог на имущество юридических лиц ",null,null,400]
[null,"Земельный налог с юридических лиц ",null,null,410]
[null,"Единый налоговый платеж ",null,null,420]
[null,"Единый земельный налог ",null,null,430]
[null,"Фиксированный налог ",null,null,440]
[null,"Прочие налоги ",null,null,450]
[null,"Обязательные отчисления в государственные целевые фонды ",null,null,460]
[null,"Единый социальный платеж ",null,null,490]
[null,"Импортные таможенные пошлины ",null,null,500]
[null,"Местные обязательные платежы ",null,null,510]
[null,"Финансовые санкции за просроченные платежи в бюджет ",null,null,520]
[null,"Всего сумма платежей в бюджет (стр. с 330 по 520 кроме стр. 341)",null,null,530]

{"sheet":"1945_5_ru","index":38,"n_rows":47,"n_cols":7,"rows_kept":47,"cut":false,"hidden":true,"merged":[[12,1,12,3],[0,2,0,4],[1,2,1,4],[2,2,2,4],[3,2,3,4],[4,2,4,4],[6,1,6,3],[7,1,7,3],[8,1,8,3],[9,1,9,3],[10,1,10,3],[11,1,11,3],[24,1,24,3],[13,1,13,3],[14,1,14,3],[15,1,15,3],[16,1,16,3],[17,1,17,3],[18,1,18,3],[19,1,19,3],[20,1,20,3],[21,1,21,3],[22,1,22,3],[23,1,23,3],[36,1,36,3],[25,1,25,3],[26,1,26,3],[27,1,27,3],[28,1,28,3],[29,1,29,3],[30,1,30,3],[31,1,31,3],[32,1,32,3],[33,1,33,3],[34,1,34,3],[35,1,35,3],[43,1,43,3],[44,1,44,3],[45,1,45,3],[46,1,46,3],[37,1,37,3],[38,1,38,3],[39,1,39,3],[40,1,40,3],[41,1,41,3],[42,1,42,3]]}
[null,"Рег. номер",{"$f":"VLOOKUP($C$5,#REF!,2,FALSE)","v":1945},null,null,"Список таблиц"]
[null,"Наим. док-та",{"$f":"VLOOKUP($C$5,#REF!,3,FALSE)","v":"Формы финансовой отчетности страховщиков и правила по их заполнению"}]
[null,"Номер прил-я",{"$f":"VLOOKUP($C$5,#REF!,4,FALSE)","v":5}]
[null,"Наим. прил-я",{"$f":"VLOOKUP($C$5,#REF!,5,FALSE)","v":"Отчет о денежных потоках — форма № 4 — страхование"}]
[null,"Код прил-я","1945_5"]
[]
[null,"Наименование показателей",null,null,"Код стр. ","Приход ","Расход "]
[null,"Операционная деятельность"]
[null,"Денежные поступления по страховым операциям, всего (стр. 020 + 030 + 040 + 050 + 060), в том числе: ",null,null,10]
[null,"Денежные поступления в виде страховых премий по договорам страхования и сострахования",null,null,20]
[null,"Денежные поступления в виде страховых премий по договорам перестрахования",null,null,30]
[null,"Денежные поступления от оказания услуг страхового посредника, аджастера, сюрвейера",null,null,40]
[null,"Денежные поступления в виде комиссионных вознаграждений, тантъем и сборов по перестрахованию",null,null,50]
[null,"Денежные поступления по возмещениям долей убытков по рискам, переданным в перестрахование и ретроцессию",null,null,60]
[null,"Денежные выплаты по страховым операциям, всего (стр. 080 + 090 + 100 + 110 + 120 + 130), в том числе:",null,null,70]
[null,"Денежные средства, выплаченные в виде страховых премий по договорам перестрахования и ретроцесии",null,null,80]
[null,"Денежные средства, выплаченные в виде страховых возмещений по договорам страхования и сострахования ",null,null,90]
[null,"Денежные средства, выплаченные в виде возмещений доли убытков по рискам, полученным по перестрахованию и ретроцессии",null,null,100]
[null,"Денежные средства, выплаченные страховым посредникам в виде вознаграждений за заключение договоров страхования, сострахования и перестрахования ",null,null,110]
[null,"Денежные средства, выплаченные за услуги, оказанные актуариями, аджастерами, сюрвейерами, ассистансами ",null,null,120]
[null,"Денежные средства, выплаченные на финансирование предупредительных мероприятий ",null,null,130]
[null,"Денежные средства, выплаченные работникам и от их имени ",null,null,140]
[null,"Другие денежные поступления и выплаты от операционной деятельности",null,null,150]
[null,"Итого: чистый денежный приток/ отток от операционной деятельности (стр. 010-070-140 + /-150) ",null,null,160]
[null,"Инвестиционная деятельность"]
[null,"Приобретение и продажа основных средств",null,null,170]
[null,"Приобретение и продажа нематериальных активов",null,null,180]
[null,"Приобретение и продажа долгосрочных и краткосрочных инвестиций ",null,null,190]
[null,"Другие денежные поступления и выплаты от инвестиционной деятельности ",null,null,200]
[null,"Итого: чистый денежный приток/отток от инвестиционной деятельности (стр. 170 + /-180 + /-190 + /-200)",null,null,210]
[null,"Финансовая деятельность"]
[null,"Полученные и выплаченные проценты ",null,null,220]
[null,"Полученные и выплаченные дивиденды ",null,null,230]
[null,"Денежные поступления от выпуска акций или других инструментов, связанных с собственным капиталом ",null,null,240]
[null,"Денежные выплаты и поступления при выкупе и реализации собственных акций ",null,null,250]
[null,"Денежные поступления и выплаты по долгосрочным и краткосрочным кредитам и займам",null,null,260]
[null,"Денежные поступления и выплаты по долгосрочной аренде (лизингу)",null,null,270]
[null,"Другие денежные поступления и выплаты от финансовой деятельности",null,null,280]
[null,"Итого: Чистый денежный приток/отток от финансовой деятельности (стр. 220 + / – 230 + 240 + / – 250 + / – 260 + / – 270 + / – 280) ",null,null,290]
[null,"Налогообложение"]
[null,"Уплаченный налог на прибыль ",null,null,300]
[null,"Уплаченные прочие налоги ",null,null,310]
[null,"Итого: уплаченные налоги (стр. 300 + 310) ",null,null,320]
[null,"Итого: чистый денежный приток/отток от финансово – хозяйственной деятельности (стр. 160 + / – 210 + / – 290 – 320) ",null,null,330]
[null,"Сальдо курсовых разниц, образовавшихся от переоценки денежных средств в иностранной валюте ",null,null,331]
[null,"Денежные средства на начало года ",null,null,340]
[null,"Денежные средства на конец года",null,null,350]

{"sheet":"1945_6_ru","index":39,"n_rows":19,"n_cols":6,"rows_kept":19,"cut":false,"hidden":true,"merged":[[6,1,6,3],[0,2,0,4],[1,2,1,4],[2,2,2,4],[3,2,3,4],[4,2,4,4],[18,1,18,3],[7,1,7,3],[8,1,8,3],[9,1,9,3],[10,1,10,3],[11,1,11,3],[12,1,12,3],[13,1,13,3],[14,1,14,3],[15,1,15,3],[16,1,16,3],[17,1,17,3]]}
[null,"Рег. номер",{"$f":"VLOOKUP($C$5,#REF!,2,FALSE)","v":1945},null,null,"Список таблиц"]
[null,"Наим. док-та",{"$f":"VLOOKUP($C$5,#REF!,3,FALSE)","v":"Формы финансовой отчетности страховщиков и правила по их заполнению"}]
[null,"Номер прил-я",{"$f":"VLOOKUP($C$5,#REF!,4,FALSE)","v":6}]
[null,"Наим. прил-я",{"$f":"VLOOKUP($C$5,#REF!,5,FALSE)","v":"Справка о движении денежных средств в иностранной валюте"}]
[null,"Код прил-я","1945_6"]
[]
[null,"Наименование показателей",null,null,"Код стр. ","Сумма"]
[null,"Остаток на начало года",null,null,360]
[null,"Поступило валютных средств, всего (стр. 371 + 372 + 373 + 374), в том числе",null,null,370]
[null,"Выручка от реализации ",null,null,371]
[null,"Проконвертировано",null,null,372]
[null,"По финансовой деятельности",null,null,373]
[null,"Другие источники ",null,null,374]
[null,"Израсходовано валютных средств, всего (стр. 381 + 382 + 383), в том числе ",null,null,380]
[null,"Выплаты поставщикам и подрядчикам",null,null,381]
[null,"Выплаты по финансовой деятельности",null,null,382]
[null,"На другие цели ",null,null,383]
[null,"Сальдо курсовых разниц, образовавшихся от переоценки денежных средств в иностранной валюте",null,null,390]
[null,"Остаток на конец года (стр. 360 + 370 – 380 + /– 390)",null,null,400]

{"sheet":"1945_7_ru","index":40,"n_rows":29,"n_cols":12,"rows_kept":29,"cut":false,"hidden":true,"merged":[[6,1,6,3],[0,2,0,4],[1,2,1,4],[2,2,2,4],[3,2,3,4],[4,2,4,4],[18,1,18,3],[7,1,7,3],[8,1,8,3],[9,1,9,3],[10,1,10,3],[11,1,11,3],[12,1,12,3],[13,1,13,3],[14,1,14,3],[15,1,15,3],[16,1,16,3],[17,1,17,3],[25,1,25,3],[26,1,26,3],[27,1,27,3],[28,1,28,3],[19,1,19,3],[20,1,20,3],[21,1,21,3],[22,1,22,3],[23,1,23,3],[24,1,24,3]]}
[null,"Рег. номер",{"$f":"VLOOKUP($C$5,#REF!,2,FALSE)","v":1945},null,null,"Список таблиц"]
[null,"Наим. док-та",{"$f":"VLOOKUP($C$5,#REF!,3,FALSE)","v":"Формы финансовой отчетности страховщиков и правила по их заполнению"}]
[null,"Номер прил-я",{"$f":"VLOOKUP($C$5,#REF!,4,FALSE)","v":7}]
[null,"Наим. прил-я",{"$f":"VLOOKUP($C$5,#REF!,5,FALSE)","v":"Отчет о собственном капитале — форма № 5 — страхование"}]
[null,"Код прил-я","1945_7"]
[]
[null,"Наименование показателей",null,null,"Код стр.","Уставный капитал ","Добавленный капитал","Резервный капитал","Нераспределенная прибыль (непокрытый убыток)","Выкупленные собственные акции","Целевые поступления и прочие","Итого"]
[null,"Остаток на начало года",null,null,10]
[null,"Эмиссия ценных бумаг",null,null,20]
[null,"Переоценка долгосрочных активов",null,null,30]
[null,"Валютная курсовая разница при формировании уставного капитала",null,null,40]
[null,"Отчисления в резервный капитал",null,null,50]
[null,"Нераспределенная прибыль (непокрытый убыток) отчётного года",null,null,60]
[null,"Безвозмездно полученное имущество",null,null,70]
[null,"Полученные средства по целевому назначению",null,null,80]
[null,"Дивиденды уплаченные ",null,null,90]
[null,"Прочие источники формирования собственного капитала",null,null,100]
[null,"Остаток на конец года",null,null,110]
[null,"Увеличение (+) или уменьшение (–) собственного капитала",null,null,120]
[null,"СПРАВОЧНО:"]
[null,"Количество выпущенных акций, шт.",null,null,130]
[null,"в том числе:"]
[null,"привилегированные",null,null,131]
[null,"простые",null,null,132]
[null,"Номинальная стоимость акции",null,null,140]
[null,"Количество акций в обращении, шт.",null,null,150]
[null,"в том числе:"]
[null,"привилегированные ",null,null,151]
[null,"простые ",null,null,152]